Workbook

Sheet Main
B6: Client Account
B7: Factory47
B8: =HYPERLINK("#"&B7&"!j7","> OPEN <") -> > OPEN <
B10: Date Of Work | D10: Finishing Date
B11: =INDIRECT(""&B7&"!E3") -> 2018-02-20 | D11: =INDIRECT(""&B7&"!E5") -> 0
B13: Total Payment | D13: Profit
B14: =INDIRECT(""&B7&"!H3") -> 5715 | D14: =INDIRECT(""&B7&"!P5") -> 820
B16: Remaining | D16: P.P
B17: =INDIRECT(""&B7&"!G3") -> 1715 | D17: =(D14/B14*100) -> 14.34820647

Sheet Invoice1
E1: فــــــاتــــــــورة-Invoice
E3: DATE: | F3: =TODAY() -> 2018-02-25
A4: Egypt,Portsaid - Elsafa Zone Behind Islamic Studies Institute | E4: INVOICE # | F4: =INDIRECT(""&A9&"!G5") -> 0
A5: Phone: [010-120-85-880] , [012-295-23-3308] | E5: Customer ID | F5: =INDIRECT(""&A9&"!D3") -> 0002
A6: E-Mail : [portegy@gmail.com] | E6: Due Date
A7: BILL TO | E7: Subtotal | F7: =SUM(F15:F31) -> 950
A8: =INDIRECT(""&A9&"!A2") -> ا/ رمضان | B8: :Name | E8: Taxable | F8: =SUMIF(E15:E31,"=x",F15:F31) -> 0 | H8: ← This sums the amounts with an "X" in the Taxed column
A9: Factory47 | B9: :C.N | E9: Tax rate | F9: 0.0625 | H9: ← Enter the Tax Rate
A10: =INDIRECT(""&A9&"!A4") -> المنطقة الصناعية - نجمع المصانع - مصنع 47 | B10: :ADD | E10: Tax due | F10: =ROUND(F8*F9,2) -> 0
A11: =INDIRECT(""&A9&"!A3") -> 01004662062 | B11: :Tel | E11: Other | F11: 0 | H11: ← You can change "Other" to "Shipping" if applicable
E12: TOTAL Due | F12: =F7+F10+F11 -> 950
E13: =NoToTxt(Inv_Total,"جنيه","قرشاً") -> فقط تسعمائة وخمسون جنيه
A14: DESCRIPTION | C14: Count | D14: Amount | E14: TAXED | F14: Total Amount
F15: 230
F16: 375
F17: 345
D32: [42]
H33: OTHER COMMENTS
H34: 1. Total payment due in 30 days
H35: 2. Please include the invoice number on your check
H36: 3- The Period Of Guarante Is ( )

Sheet Factory47
A2: ا/ رمضان | C2: الاســــــم | D2: ID | E2: تاريخ التركيب | G2: الإجمالى المطلوب | H2: إجمالى | L2: فاتورة
A3: 01004662062 | C3: التليفون | D3: 0002 | E3: 2018-02-20 | G3: =H3-I18 -> 1715 | H3: =SUMIF(C7:C203,H5,G7:G203) -> 5715 | L3: =H5 -> Bill1
A4: المنطقة الصناعية - نجمع المصانع - مصنع 47 | C4: العنوان | E4: تاريخ الانتهاء | H4: فاتورة | L4: السعر | M4: الاجمالى | N4: مصروفات | O4: دفعات | P4: الربح | Q4: P.P
A5: محمد علاء الدين | C5: مسئول التركيب | H5: Bill1 | L5: =SUMIF(C7:C203,H5,M7:M203) -> 4795 | M5: =SUMIF(C7:C203,H5,N7:N203) -> 4795 | N5: =SUMIF(Q9:Q20,H5,O9:O20) -> 100 | O5: =I18 -> 4000 | P5: =H3-M5-O21 -> 820 | Q5: =P5/H3*100 -> 14.34820647
A6: م | B6: الصنف | C6: فاتورة | D6: العدد | E6: السعر | F6: ضرائب | G6: الاجمالى | L6: العدد | M6: السعر | N6: الإجمالى | S6: Fatora Menu
A7: =IF(TRIM(B7)="","",COUNTA($B$7:B7)) -> 1 | B7: PC lenovo Ram4 Hard500 | C7: Bill1 | D7: 1 | E7: 1700 | G7: =E7*D7 -> 1700 | I7: دفعات | L7: 1 | M7: 1500 | N7: =M7*L7 -> 1500 | O7: مصروفات | S7: =IF(COUNTIF($C$7:C7,C7)=1,MAX($S$1:S1)+1,"") -> 1 | T7: =IF(ROWS($C$7:C7)>ROW(INDIRECT(ADDRESS(MAX(S:S),2))),"",INDEX(INDIRECT("$C$7"&":$C$"&MATCH(MAX(S:S),S:S,0)),MATCH(ROWS($C$1:C1),INDIRECT("$R$7"&":$R$"&MATCH(MAX(S:S),S:S,0)),0))) -> 
A8: =IF(TRIM(B8)="","",COUNTA($B$7:B8)) -> 2 | B8: Monitor 22" HP | C8: Bill1 | D8: 1 | E8: 1300 | G8: =E8*D8 -> 1300 | I8: تاريخ | J8: تاريخ | K8: فاتورة | L8: 1 | M8: 1200 | N8: =M8*L8 -> 1200 | O8: مبلغ | P8: بيان | Q8: فاتورة | S8: =IF(COUNTIF($C$7:C8,C8)=1,MAX($S$1:S2)+1,"") ->  | T8: =IF(ROWS($C$7:C8)>ROW(INDIRECT(ADDRESS(MAX(S:S),2))),"",INDEX(INDIRECT("$C$7"&":$C$"&MATCH(MAX(S:S),S:S,0)),MATCH(ROWS($C$1:C2),INDIRECT("$R$7"&":$R$"&MATCH(MAX(S:S),S:S,0)),0))) -> 
A9: =IF(TRIM(B9)="","",COUNTA($B$7:B9)) -> 3 | B9: Keyboard+Mouse | C9: Bill1 | D9: 1 | E9: 100 | G9: 100 | I9: 2000 | J9: 2018-02-18 | K9: Bill1 | L9: 1 | M9: 85 | N9: 85 | O9: 100 | P9: علاء | Q9: Bill1 | S9: =IF(COUNTIF($C$7:C9,C9)=1,MAX($S$1:S3)+1,"") ->  | T9: =IF(ROWS($C$7:C9)>ROW(INDIRECT(ADDRESS(MAX(S:S),2))),"",INDEX(INDIRECT("$C$7"&":$C$"&MATCH(MAX(S:S),S:S,0)),MATCH(ROWS($C$1:C3),INDIRECT("$R$7"&":$R$"&MATCH(MAX(S:S),S:S,0)),0))) -> 
A10: =IF(TRIM(B10)="","",COUNTA($B$7:B10)) -> 4 | B10: 2 Cable Power,1 Vga | C10: Bill1 | D10: 3 | E10: 40 | G10: 120 | I10: 2000 | J10: 2018-02-19 | K10: Bill1 | L10: 1 | M10: 60 | N10: 60 | S10: =IF(COUNTIF($C$7:C10,C10)=1,MAX($S$1:S4)+1,"") ->  | T10: =IF(ROWS($C$7:C10)>ROW(INDIRECT(ADDRESS(MAX(S:S),2))),"",INDEX(INDIRECT("$C$7"&":$C$"&MATCH(MAX(S:S),S:S,0)),MATCH(ROWS($C$1:C4),INDIRECT("$R$7"&":$R$"&MATCH(MAX(S:S),S:S,0)),0))) -> 
A11: =IF(TRIM(B11)="","",COUNTA($B$7:B11)) -> 5 | B11: Sound Speaker + Connector+Pad | C11: Bill1 | D11: 1 | E11: 120 | G11: 120 | L11: 1 | M11: 100 | N11: 100 | S11: =IF(COUNTIF($C$7:C11,C11)=1,MAX($S$1:S5)+1,"") ->  | T11: =IF(ROWS($C$7:C11)>ROW(INDIRECT(ADDRESS(MAX(S:S),2))),"",INDEX(INDIRECT("$C$7"&":$C$"&MATCH(MAX(S:S),S:S,0)),MATCH(ROWS($C$1:C5),INDIRECT("$R$7"&":$R$"&MATCH(MAX(S:S),S:S,0)),0))) -> 
A12: =IF(TRIM(B12)="","",COUNTA($B$7:B12)) -> 6 | B12: Finger Print | C12: Bill1 | D12: 1 | E12: 1900 | G12: 1900 | L12: 1 | M12: 1450 | N12: 1450 | S12: =IF(COUNTIF($C$7:C12,C12)=1,MAX($S$1:S6)+1,"") ->  | T12: =IF(ROWS($C$7:C12)>ROW(INDIRECT(ADDRESS(MAX(S:S),2))),"",INDEX(INDIRECT("$C$7"&":$C$"&MATCH(MAX(S:S),S:S,0)),MATCH(ROWS($C$1:C6),INDIRECT("$R$7"&":$R$"&MATCH(MAX(S:S),S:S,0)),0))) -> 
A13: =IF(TRIM(B13)="","",COUNTA($B$7:B13)) -> 7 | B13: Configuration | C13: Bill1 | D13: 1 | E13: 300 | G13: 300 | L13: 1 | M13: 300 | N13: 300 | S13: =IF(COUNTIF($C$7:C13,C13)=1,MAX($S$1:S7)+1,"") ->  | T13: =IF(ROWS($C$7:C13)>ROW(INDIRECT(ADDRESS(MAX(S:S),2))),"",INDEX(INDIRECT("$C$7"&":$C$"&MATCH(MAX(S:S),S:S,0)),MATCH(ROWS($C$1:C7),INDIRECT("$R$7"&":$R$"&MATCH(MAX(S:S),S:S,0)),0))) -> 
A14: =IF(TRIM(B14)="","",COUNTA($B$7:B14)) -> 8 | B14: ID Finger | C14: Bill1 | D14: 25 | E14: 7 | G14: 175 | L14: 1 | M14: 100 | N14: 100 | S14: =IF(COUNTIF($C$7:C14,C14)=1,MAX($S$1:S8)+1,"") ->  | T14: =IF(ROWS($C$7:C14)>ROW(INDIRECT(ADDRESS(MAX(S:S),2))),"",INDEX(INDIRECT("$C$7"&":$C$"&MATCH(MAX(S:S),S:S,0)),MATCH(ROWS($C$1:C8),INDIRECT("$R$7"&":$R$"&MATCH(MAX(S:S),S:S,0)),0))) -> 
A15: =IF(TRIM(B15)="","",COUNTA($B$7:B15)) ->  | G15: 0 | N15: 0 | S15: =IF(COUNTIF($C$7:C15,C15)=1,MAX($S$1:S9)+1,"") ->  | T15: =IF(ROWS($C$7:C15)>ROW(INDIRECT(ADDRESS(MAX(S:S),2))),"",INDEX(INDIRECT("$C$7"&":$C$"&MATCH(MAX(S:S),S:S,0)),MATCH(ROWS($C$1:C9),INDIRECT("$R$7"&":$R$"&MATCH(MAX(S:S),S:S,0)),0))) -> 
A16: =IF(TRIM(B16)="","",COUNTA($B$7:B16)) ->  | G16: 0 | N16: 0 | S16: =IF(COUNTIF($C$7:C16,C16)=1,MAX($S$1:S10)+1,"") ->  | T16: =IF(ROWS($C$7:C16)>ROW(INDIRECT(ADDRESS(MAX(S:S),2))),"",INDEX(INDIRECT("$C$7"&":$C$"&MATCH(MAX(S:S),S:S,0)),MATCH(ROWS($C$1:C10),INDIRECT("$R$7"&":$R$"&MATCH(MAX(S:S),S:S,0)),0))) -> 
A17: =IF(TRIM(B17)="","",COUNTA($B$7:B17)) -> 9 | B17: Sound Sys Apmlifier | D17: 1 | G17: 1300 | S17: =IF(COUNTIF($C$7:C17,C17)=1,MAX($S$1:S11)+1,"") ->  | T17: =IF(ROWS($C$7:C17)>ROW(INDIRECT(ADDRESS(MAX(S:S),2))),"",INDEX(INDIRECT("$C$7"&":$C$"&MATCH(MAX(S:S),S:S,0)),MATCH(ROWS($C$1:C11),INDIRECT("$R$7"&":$R$"&MATCH(MAX(S:S),S:S,0)),0))) -> 
A18: =IF(TRIM(B18)="","",COUNTA($B$7:B18)) -> 10 | B18: Speaker Philips | D18: 2 | G18: 850 | I18: =SUM(I9:I17) -> 4000 | J18: إجمالى | S18: =IF(COUNTIF($C$7:C18,C18)=1,MAX($S$1:S12)+1,"") ->  | T18: =IF(ROWS($C$7:C18)>ROW(INDIRECT(ADDRESS(MAX(S:S),2))),"",INDEX(INDIRECT("$C$7"&":$C$"&MATCH(MAX(S:S),S:S,0)),MATCH(ROWS($C$1:C12),INDIRECT("$R$7"&":$R$"&MATCH(MAX(S:S),S:S,0)),0))) -> 
A19: =IF(TRIM(B19)="","",COUNTA($B$7:B19)) -> 11 | B19: Cable | D19: 1 | G19: 200 | S19: =IF(COUNTIF($C$7:C19,C19)=1,MAX($S$1:S13)+1,"") ->  | T19: =IF(ROWS($C$7:C19)>ROW(INDIRECT(ADDRESS(MAX(S:S),2))),"",INDEX(INDIRECT("$C$7"&":$C$"&MATCH(MAX(S:S),S:S,0)),MATCH(ROWS($C$1:C13),INDIRECT("$R$7"&":$R$"&MATCH(MAX(S:S),S:S,0)),0))) -> 
A20: =IF(TRIM(B20)="","",COUNTA($B$7:B20)) -> 12 | B20: Work | D20: 1 | G20: 300 | S20: =IF(COUNTIF($C$7:C20,C20)=1,MAX($S$1:S14)+1,"") ->  | T20: =IF(ROWS($C$7:C20)>ROW(INDIRECT(ADDRESS(MAX(S:S),2))),"",INDEX(INDIRECT("$C$7"&":$C$"&MATCH(MAX(S:S),S:S,0)),MATCH(ROWS($C$1:C14),INDIRECT("$R$7"&":$R$"&MATCH(MAX(S:S),S:S,0)),0))) -> 
A21: =IF(TRIM(B21)="","",COUNTA($B$7:B21)) -> 13 | B21: Rack | D21: 1 | G21: 950 | O21: =SUM(O9:O20) -> 100 | P21: إجمالى | S21: =IF(COUNTIF($C$7:C21,C21)=1,MAX($S$1:S15)+1,"") ->  | T21: =IF(ROWS($C$7:C21)>ROW(INDIRECT(ADDRESS(MAX(S:S),2))),"",INDEX(INDIRECT("$C$7"&":$C$"&MATCH(MAX(S:S),S:S,0)),MATCH(ROWS($C$1:C15),INDIRECT("$R$7"&":$R$"&MATCH(MAX(S:S),S:S,0)),0))) -> 
A22: =IF(TRIM(B22)="","",COUNTA($B$7:B22)) ->  | G22: 0 | S22: =IF(COUNTIF($C$7:C22,C22)=1,MAX($S$1:S16)+1,"") ->  | T22: =IF(ROWS($C$7:C22)>ROW(INDIRECT(ADDRESS(MAX(S:S),2))),"",INDEX(INDIRECT("$C$7"&":$C$"&MATCH(MAX(S:S),S:S,0)),MATCH(ROWS($C$1:C16),INDIRECT("$R$7"&":$R$"&MATCH(MAX(S:S),S:S,0)),0))) -> 
A23: =IF(TRIM(B23)="","",COUNTA($B$7:B23)) -> 14 | B23: System Cameras | G23: 0 | S23: =IF(COUNTIF($C$7:C23,C23)=1,MAX($S$1:S17)+1,"") ->  | T23: =IF(ROWS($C$7:C23)>ROW(INDIRECT(ADDRESS(MAX(S:S),2))),"",INDEX(INDIRECT("$C$7"&":$C$"&MATCH(MAX(S:S),S:S,0)),MATCH(ROWS($C$1:C17),INDIRECT("$R$7"&":$R$"&MATCH(MAX(S:S),S:S,0)),0))) -> 
A24: =IF(TRIM(B24)="","",COUNTA($B$7:B24)) -> 15 | B24: DVR 8 CH ASTRA | D24: 1 | G24: 1790 | S24: =IF(COUNTIF($C$7:C24,C24)=1,MAX($S$1:S18)+1,"") ->  | T24: =IF(ROWS($C$7:C24)>ROW(INDIRECT(ADDRESS(MAX(S:S),2))),"",INDEX(INDIRECT("$C$7"&":$C$"&MATCH(MAX(S:S),S:S,0)),MATCH(ROWS($C$1:C18),INDIRECT("$R$7"&":$R$"&MATCH(MAX(S:S),S:S,0)),0))) -> 
A25: =IF(TRIM(B25)="","",COUNTA($B$7:B25)) -> 16 | B25: Power 15 AMP | D25: 1 | G25: 250 | S25: =IF(COUNTIF($C$7:C25,C25)=1,MAX($S$1:S19)+1,"") ->  | T25: =IF(ROWS($C$7:C25)>ROW(INDIRECT(ADDRESS(MAX(S:S),2))),"",INDEX(INDIRECT("$C$7"&":$C$"&MATCH(MAX(S:S),S:S,0)),MATCH(ROWS($C$1:C19),INDIRECT("$R$7"&":$R$"&MATCH(MAX(S:S),S:S,0)),0))) -> 
A26: =IF(TRIM(B26)="","",COUNTA($B$7:B26)) -> 17 | B26: 12 BNC+6 Power | D26: 1 | G26: 180 | N26: 0 | S26: =IF(COUNTIF($C$7:C26,C26)=1,MAX($S$1:S20)+1,"") ->  | T26: =IF(ROWS($C$7:C26)>ROW(INDIRECT(ADDRESS(MAX(S:S),2))),"",INDEX(INDIRECT("$C$7"&":$C$"&MATCH(MAX(S:S),S:S,0)),MATCH(ROWS($C$1:C20),INDIRECT("$R$7"&":$R$"&MATCH(MAX(S:S),S:S,0)),0))) -> 
A27: =IF(TRIM(B27)="","",COUNTA($B$7:B27)) -> 18 | B27: Hard 2T Wesern Purpule | D27: 1 | G27: 1750 | N27: 0 | S27: =IF(COUNTIF($C$7:C27,C27)=1,MAX($S$1:S21)+1,"") ->  | T27: =IF(ROWS($C$7:C27)>ROW(INDIRECT(ADDRESS(MAX(S:S),2))),"",INDEX(INDIRECT("$C$7"&":$C$"&MATCH(MAX(S:S),S:S,0)),MATCH(ROWS($C$1:C21),INDIRECT("$R$7"&":$R$"&MATCH(MAX(S:S),S:S,0)),0))) -> 
A28: =IF(TRIM(B28)="","",COUNTA($B$7:B28)) -> 19 | B28: Camera Work | G28: 0 | N28: 0 | S28: =IF(COUNTIF($C$7:C28,C28)=1,MAX($S$1:S22)+1,"") ->  | T28: =IF(ROWS($C$7:C28)>ROW(INDIRECT(ADDRESS(MAX(S:S),2))),"",INDEX(INDIRECT("$C$7"&":$C$"&MATCH(MAX(S:S),S:S,0)),MATCH(ROWS($C$1:C22),INDIRECT("$R$7"&":$R$"&MATCH(MAX(S:S),S:S,0)),0))) -> 
A29: =IF(TRIM(B29)="","",COUNTA($B$7:B29)) -> 20 | B29: Cable VGA + Connectors | G29: 0 | N29: 0 | S29: =IF(COUNTIF($C$7:C29,C29)=1,MAX($S$1:S23)+1,"") ->  | T29: =IF(ROWS($C$7:C29)>ROW(INDIRECT(ADDRESS(MAX(S:S),2))),"",INDEX(INDIRECT("$C$7"&":$C$"&MATCH(MAX(S:S),S:S,0)),MATCH(ROWS($C$1:C23),INDIRECT("$R$7"&":$R$"&MATCH(MAX(S:S),S:S,0)),0))) -> 
A30: =IF(TRIM(B30)="","",COUNTA($B$7:B30)) ->  | G30: 0 | N30: 0 | S30: =IF(COUNTIF($C$7:C30,C30)=1,MAX($S$1:S24)+1,"") ->  | T30: =IF(ROWS($C$7:C30)>ROW(INDIRECT(ADDRESS(MAX(S:S),2))),"",INDEX(INDIRECT("$C$7"&":$C$"&MATCH(MAX(S:S),S:S,0)),MATCH(ROWS($C$1:C24),INDIRECT("$R$7"&":$R$"&MATCH(MAX(S:S),S:S,0)),0))) -> 
A31: =IF(TRIM(B31)="","",COUNTA($B$7:B31)) ->  | G31: 0 | N31: 0 | S31: =IF(COUNTIF($C$7:C31,C31)=1,MAX($S$1:S25)+1,"") ->  | T31: =IF(ROWS($C$7:C31)>ROW(INDIRECT(ADDRESS(MAX(S:S),2))),"",INDEX(INDIRECT("$C$7"&":$C$"&MATCH(MAX(S:S),S:S,0)),MATCH(ROWS($C$1:C25),INDIRECT("$R$7"&":$R$"&MATCH(MAX(S:S),S:S,0)),0))) -> 
A32: =IF(TRIM(B32)="","",COUNTA($B$7:B32)) ->  | G32: 0 | N32: 0 | S32: =IF(COUNTIF($C$7:C32,C32)=1,MAX($S$1:S26)+1,"") ->  | T32: =IF(ROWS($C$7:C32)>ROW(INDIRECT(ADDRESS(MAX(S:S),2))),"",INDEX(INDIRECT("$C$7"&":$C$"&MATCH(MAX(S:S),S:S,0)),MATCH(ROWS($C$1:C26),INDIRECT("$R$7"&":$R$"&MATCH(MAX(S:S),S:S,0)),0))) -> 
A33: =IF(TRIM(B33)="","",COUNTA($B$7:B33)) ->  | G33: 0 | N33: 0 | S33: =IF(COUNTIF($C$7:C33,C33)=1,MAX($S$1:S27)+1,"") ->  | T33: =IF(ROWS($C$7:C33)>ROW(INDIRECT(ADDRESS(MAX(S:S),2))),"",INDEX(INDIRECT("$C$7"&":$C$"&MATCH(MAX(S:S),S:S,0)),MATCH(ROWS($C$1:C27),INDIRECT("$R$7"&":$R$"&MATCH(MAX(S:S),S:S,0)),0))) -> 
A34: =IF(TRIM(B34)="","",COUNTA($B$7:B34)) ->  | G34: 0 | N34: 0 | S34: =IF(COUNTIF($C$7:C34,C34)=1,MAX($S$1:S28)+1,"") ->  | T34: =IF(ROWS($C$7:C34)>ROW(INDIRECT(ADDRESS(MAX(S:S),2))),"",INDEX(INDIRECT("$C$7"&":$C$"&MATCH(MAX(S:S),S:S,0)),MATCH(ROWS($C$1:C28),INDIRECT("$R$7"&":$R$"&MATCH(MAX(S:S),S:S,0)),0))) -> 
A35: =IF(TRIM(B35)="","",COUNTA($B$7:B35)) ->  | G35: 0 | N35: 0 | S35: =IF(COUNTIF($C$7:C35,C35)=1,MAX($S$1:S29)+1,"") ->  | T35: =IF(ROWS($C$7:C35)>ROW(INDIRECT(ADDRESS(MAX(S:S),2))),"",INDEX(INDIRECT("$C$7"&":$C$"&MATCH(MAX(S:S),S:S,0)),MATCH(ROWS($C$1:C29),INDIRECT("$R$7"&":$R$"&MATCH(MAX(S:S),S:S,0)),0))) -> 
A36: =IF(TRIM(B36)="","",COUNTA($B$7:B36)) ->  | G36: 0 | N36: 0 | S36: =IF(COUNTIF($C$7:C36,C36)=1,MAX($S$1:S30)+1,"") ->  | T36: =IF(ROWS($C$7:C36)>ROW(INDIRECT(ADDRESS(MAX(S:S),2))),"",INDEX(INDIRECT("$C$7"&":$C$"&MATCH(MAX(S:S),S:S,0)),MATCH(ROWS($C$1:C30),INDIRECT("$R$7"&":$R$"&MATCH(MAX(S:S),S:S,0)),0))) -> 
A37: =IF(TRIM(B37)="","",COUNTA($B$7:B37)) ->  | G37: 0 | N37: 0 | S37: =IF(COUNTIF($C$7:C37,C37)=1,MAX($S$1:S31)+1,"") ->  | T37: =IF(ROWS($C$7:C37)>ROW(INDIRECT(ADDRESS(MAX(S:S),2))),"",INDEX(INDIRECT("$C$7"&":$C$"&MATCH(MAX(S:S),S:S,0)),MATCH(ROWS($C$1:C31),INDIRECT("$R$7"&":$R$"&MATCH(MAX(S:S),S:S,0)),0))) -> 
A38: =IF(TRIM(B38)="","",COUNTA($B$7:B38)) ->  | G38: 0 | N38: 0 | S38: =IF(COUNTIF($C$7:C38,C38)=1,MAX($S$1:S32)+1,"") ->  | T38: =IF(ROWS($C$7:C38)>ROW(INDIRECT(ADDRESS(MAX(S:S),2))),"",INDEX(INDIRECT("$C$7"&":$C$"&MATCH(MAX(S:S),S:S,0)),MATCH(ROWS($C$1:C32),INDIRECT("$R$7"&":$R$"&MATCH(MAX(S:S),S:S,0)),0))) -> 
A39: =IF(TRIM(B39)="","",COUNTA($B$7:B39)) ->  | G39: 0 | N39: 0 | S39: =IF(COUNTIF($C$7:C39,C39)=1,MAX($S$1:S33)+1,"") ->  | T39: =IF(ROWS($C$7:C39)>ROW(INDIRECT(ADDRESS(MAX(S:S),2))),"",INDEX(INDIRECT("$C$7"&":$C$"&MATCH(MAX(S:S),S:S,0)),MATCH(ROWS($C$1:C33),INDIRECT("$R$7"&":$R$"&MATCH(MAX(S:S),S:S,0)),0))) -> 
A40: =IF(TRIM(B40)="","",COUNTA($B$7:B40)) ->  | G40: 0 | N40: 0 | S40: =IF(COUNTIF($C$7:C40,C40)=1,MAX($S$1:S34)+1,"") ->  | T40: =IF(ROWS($C$7:C40)>ROW(INDIRECT(ADDRESS(MAX(S:S),2))),"",INDEX(INDIRECT("$C$7"&":$C$"&MATCH(MAX(S:S),S:S,0)),MATCH(ROWS($C$1:C34),INDIRECT("$R$7"&":$R$"&MATCH(MAX(S:S),S:S,0)),0))) -> 
A41: =IF(TRIM(B41)="","",COUNTA($B$7:B41)) ->  | G41: 0 | N41: 0 | S41: =IF(COUNTIF($C$7:C41,C41)=1,MAX($S$1:S35)+1,"") ->  | T41: =IF(ROWS($C$7:C41)>ROW(INDIRECT(ADDRESS(MAX(S:S),2))),"",INDEX(INDIRECT("$C$7"&":$C$"&MATCH(MAX(S:S),S:S,0)),MATCH(ROWS($C$1:C35),INDIRECT("$R$7"&":$R$"&MATCH(MAX(S:S),S:S,0)),0))) -> 
A42: =IF(TRIM(B42)="","",COUNTA($B$7:B42)) ->  | G42: 0 | N42: 0 | S42: =IF(COUNTIF($C$7:C42,C42)=1,MAX($S$1:S36)+1,"") ->  | T42: =IF(ROWS($C$7:C42)>ROW(INDIRECT(ADDRESS(MAX(S:S),2))),"",INDEX(INDIRECT("$C$7"&":$C$"&MATCH(MAX(S:S),S:S,0)),MATCH(ROWS($C$1:C36),INDIRECT("$R$7"&":$R$"&MATCH(MAX(S:S),S:S,0)),0))) -> 
A43: =IF(TRIM(B43)="","",COUNTA($B$7:B43)) ->  | G43: 0 | N43: 0 | S43: =IF(COUNTIF($C$7:C43,C43)=1,MAX($S$1:S37)+1,"") ->  | T43: =IF(ROWS($C$7:C43)>ROW(INDIRECT(ADDRESS(MAX(S:S),2))),"",INDEX(INDIRECT("$C$7"&":$C$"&MATCH(MAX(S:S),S:S,0)),MATCH(ROWS($C$1:C37),INDIRECT("$R$7"&":$R$"&MATCH(MAX(S:S),S:S,0)),0))) -> 
A44: =IF(TRIM(B44)="","",COUNTA($B$7:B44)) ->  | G44: 0 | N44: 0 | S44: =IF(COUNTIF($C$7:C44,C44)=1,MAX($S$1:S38)+1,"") ->  | T44: =IF(ROWS($C$7:C44)>ROW(INDIRECT(ADDRESS(MAX(S:S),2))),"",INDEX(INDIRECT("$C$7"&":$C$"&MATCH(MAX(S:S),S:S,0)),MATCH(ROWS($C$1:C38),INDIRECT("$R$7"&":$R$"&MATCH(MAX(S:S),S:S,0)),0))) -> 
A45: =IF(TRIM(B45)="","",COUNTA($B$7:B45)) ->  | G45: 0 | N45: 0 | S45: =IF(COUNTIF($C$7:C45,C45)=1,MAX($S$1:S39)+1,"") ->  | T45: =IF(ROWS($C$7:C45)>ROW(INDIRECT(ADDRESS(MAX(S:S),2))),"",INDEX(INDIRECT("$C$7"&":$C$"&MATCH(MAX(S:S),S:S,0)),MATCH(ROWS($C$1:C39),INDIRECT("$R$7"&":$R$"&MATCH(MAX(S:S),S:S,0)),0))) -> 
A46: =IF(TRIM(B46)="","",COUNTA($B$7:B46)) ->  | G46: 0 | N46: 0 | S46: =IF(COUNTIF($C$7:C46,C46)=1,MAX($S$1:S40)+1,"") ->  | T46: =IF(ROWS($C$7:C46)>ROW(INDIRECT(ADDRESS(MAX(S:S),2))),"",INDEX(INDIRECT("$C$7"&":$C$"&MATCH(MAX(S:S),S:S,0)),MATCH(ROWS($C$1:C40),INDIRECT("$R$7"&":$R$"&MATCH(MAX(S:S),S:S,0)),0))) -> 
A47: =IF(TRIM(B47)="","",COUNTA($B$7:B47)) ->  | G47: 0 | N47: 0 | S47: =IF(COUNTIF($C$7:C47,C47)=1,MAX($S$1:S41)+1,"") ->  | T47: =IF(ROWS($C$7:C47)>ROW(INDIRECT(ADDRESS(MAX(S:S),2))),"",INDEX(INDIRECT("$C$7"&":$C$"&MATCH(MAX(S:S),S:S,0)),MATCH(ROWS($C$1:C41),INDIRECT("$R$7"&":$R$"&MATCH(MAX(S:S),S:S,0)),0))) -> 
A48: =IF(TRIM(B48)="","",COUNTA($B$7:B48)) ->  | G48: 0 | N48: 0 | S48: =IF(COUNTIF($C$7:C48,C48)=1,MAX($S$1:S42)+1,"") ->  | T48: =IF(ROWS($C$7:C48)>ROW(INDIRECT(ADDRESS(MAX(S:S),2))),"",INDEX(INDIRECT("$C$7"&":$C$"&MATCH(MAX(S:S),S:S,0)),MATCH(ROWS($C$1:C42),INDIRECT("$R$7"&":$R$"&MATCH(MAX(S:S),S:S,0)),0))) -> 
A49: =IF(TRIM(B49)="","",COUNTA($B$7:B49)) ->  | G49: 0 | N49: 0 | S49: =IF(COUNTIF($C$7:C49,C49)=1,MAX($S$1:S43)+1,"") ->  | T49: =IF(ROWS($C$7:C49)>ROW(INDIRECT(ADDRESS(MAX(S:S),2))),"",INDEX(INDIRECT("$C$7"&":$C$"&MATCH(MAX(S:S),S:S,0)),MATCH(ROWS($C$1:C43),INDIRECT("$R$7"&":$R$"&MATCH(MAX(S:S),S:S,0)),0))) -> 
A50: =IF(TRIM(B50)="","",COUNTA($B$7:B50)) ->  | G50: 0 | N50: 0 | S50: =IF(COUNTIF($C$7:C50,C50)=1,MAX($S$1:S44)+1,"") ->  | T50: =IF(ROWS($C$7:C50)>ROW(INDIRECT(ADDRESS(MAX(S:S),2))),"",INDEX(INDIRECT("$C$7"&":$C$"&MATCH(MAX(S:S),S:S,0)),MATCH(ROWS($C$1:C44),INDIRECT("$R$7"&":$R$"&MATCH(MAX(S:S),S:S,0)),0))) -> 
A51: =IF(TRIM(B51)="","",COUNTA($B$7:B51)) ->  | G51: 0 | N51: 0 | S51: =IF(COUNTIF($C$7:C51,C51)=1,MAX($S$1:S45)+1,"") ->  | T51: =IF(ROWS($C$7:C51)>ROW(INDIRECT(ADDRESS(MAX(S:S),2))),"",INDEX(INDIRECT("$C$7"&":$C$"&MATCH(MAX(S:S),S:S,0)),MATCH(ROWS($C$1:C45),INDIRECT("$R$7"&":$R$"&MATCH(MAX(S:S),S:S,0)),0))) -> 
A52: =IF(TRIM(B52)="","",COUNTA($B$7:B52)) ->  | G52: 0 | N52: 0 | S52: =IF(COUNTIF($C$7:C52,C52)=1,MAX($S$1:S46)+1,"") ->  | T52: =IF(ROWS($C$7:C52)>ROW(INDIRECT(ADDRESS(MAX(S:S),2))),"",INDEX(INDIRECT("$C$7"&":$C$"&MATCH(MAX(S:S),S:S,0)),MATCH(ROWS($C$1:C46),INDIRECT("$R$7"&":$R$"&MATCH(MAX(S:S),S:S,0)),0))) -> 
A53: =IF(TRIM(B53)="","",COUNTA($B$7:B53)) ->  | G53: 0 | N53: 0 | S53: =IF(COUNTIF($C$7:C53,C53)=1,MAX($S$1:S47)+1,"") ->  | T53: =IF(ROWS($C$7:C53)>ROW(INDIRECT(ADDRESS(MAX(S:S),2))),"",INDEX(INDIRECT("$C$7"&":$C$"&MATCH(MAX(S:S),S:S,0)),MATCH(ROWS($C$1:C47),INDIRECT("$R$7"&":$R$"&MATCH(MAX(S:S),S:S,0)),0))) -> 
A54: =IF(TRIM(B54)="","",COUNTA($B$7:B54)) ->  | G54: 0 | N54: 0 | S54: =IF(COUNTIF($C$7:C54,C54)=1,MAX($S$1:S48)+1,"") ->  | T54: =IF(ROWS($C$7:C54)>ROW(INDIRECT(ADDRESS(MAX(S:S),2))),"",INDEX(INDIRECT("$C$7"&":$C$"&MATCH(MAX(S:S),S:S,0)),MATCH(ROWS($C$1:C48),INDIRECT("$R$7"&":$R$"&MATCH(MAX(S:S),S:S,0)),0))) -> 
A55: =IF(TRIM(B55)="","",COUNTA($B$7:B55)) ->  | G55: 0 | N55: 0 | S55: =IF(COUNTIF($C$7:C55,C55)=1,MAX($S$1:S49)+1,"") ->  | T55: =IF(ROWS($C$7:C55)>ROW(INDIRECT(ADDRESS(MAX(S:S),2))),"",INDEX(INDIRECT("$C$7"&":$C$"&MATCH(MAX(S:S),S:S,0)),MATCH(ROWS($C$1:C49),INDIRECT("$R$7"&":$R$"&MATCH(MAX(S:S),S:S,0)),0))) -> 
A56: =IF(TRIM(B56)="","",COUNTA($B$7:B56)) ->  | G56: 0 | N56: 0 | S56: =IF(COUNTIF($C$7:C56,C56)=1,MAX($S$1:S50)+1,"") ->  | T56: =IF(ROWS($C$7:C56)>ROW(INDIRECT(ADDRESS(MAX(S:S),2))),"",INDEX(INDIRECT("$C$7"&":$C$"&MATCH(MAX(S:S),S:S,0)),MATCH(ROWS($C$1:C50),INDIRECT("$R$7"&":$R$"&MATCH(MAX(S:S),S:S,0)),0))) -> 
A57: =IF(TRIM(B57)="","",COUNTA($B$7:B57)) ->  | G57: 0 | N57: 0 | S57: =IF(COUNTIF($C$7:C57,C57)=1,MAX($S$1:S51)+1,"") ->  | T57: =IF(ROWS($C$7:C57)>ROW(INDIRECT(ADDRESS(MAX(S:S),2))),"",INDEX(INDIRECT("$C$7"&":$C$"&MATCH(MAX(S:S),S:S,0)),MATCH(ROWS($C$1:C51),INDIRECT("$R$7"&":$R$"&MATCH(MAX(S:S),S:S,0)),0))) -> 
A58: =IF(TRIM(B58)="","",COUNTA($B$7:B58)) ->  | G58: 0 | N58: 0 | S58: =IF(COUNTIF($C$7:C58,C58)=1,MAX($S$1:S52)+1,"") ->  | T58: =IF(ROWS($C$7:C58)>ROW(INDIRECT(ADDRESS(MAX(S:S),2))),"",INDEX(INDIRECT("$C$7"&":$C$"&MATCH(MAX(S:S),S:S,0)),MATCH(ROWS($C$1:C52),INDIRECT("$R$7"&":$R$"&MATCH(MAX(S:S),S:S,0)),0))) -> 
A59: =IF(TRIM(B59)="","",COUNTA($B$7:B59)) ->  | G59: 0 | N59: 0 | S59: =IF(COUNTIF($C$7:C59,C59)=1,MAX($S$1:S53)+1,"") ->  | T59: =IF(ROWS($C$7:C59)>ROW(INDIRECT(ADDRESS(MAX(S:S),2))),"",INDEX(INDIRECT("$C$7"&":$C$"&MATCH(MAX(S:S),S:S,0)),MATCH(ROWS($C$1:C53),INDIRECT("$R$7"&":$R$"&MATCH(MAX(S:S),S:S,0)),0))) -> 
A60: =IF(TRIM(B60)="","",COUNTA($B$7:B60)) ->  | G60: 0 | N60: 0 | S60: =IF(COUNTIF($C$7:C60,C60)=1,MAX($S$1:S54)+1,"") ->  | T60: =IF(ROWS($C$7:C60)>ROW(INDIRECT(ADDRESS(MAX(S:S),2))),"",INDEX(INDIRECT("$C$7"&":$C$"&MATCH(MAX(S:S),S:S,0)),MATCH(ROWS($C$1:C54),INDIRECT("$R$7"&":$R$"&MATCH(MAX(S:S),S:S,0)),0))) -> 
A61: =IF(TRIM(B61)="","",COUNTA($B$7:B61)) ->  | G61: 0 | N61: 0 | S61: =IF(COUNTIF($C$7:C61,C61)=1,MAX($S$1:S55)+1,"") ->  | T61: =IF(ROWS($C$7:C61)>ROW(INDIRECT(ADDRESS(MAX(S:S),2))),"",INDEX(INDIRECT("$C$7"&":$C$"&MATCH(MAX(S:S),S:S,0)),MATCH(ROWS($C$1:C55),INDIRECT("$R$7"&":$R$"&MATCH(MAX(S:S),S:S,0)),0))) -> 
A62: =IF(TRIM(B62)="","",COUNTA($B$7:B62)) ->  | G62: 0 | N62: 0 | S62: =IF(COUNTIF($C$7:C62,C62)=1,MAX($S$1:S56)+1,"") ->  | T62: =IF(ROWS($C$7:C62)>ROW(INDIRECT(ADDRESS(MAX(S:S),2))),"",INDEX(INDIRECT("$C$7"&":$C$"&MATCH(MAX(S:S),S:S,0)),MATCH(ROWS($C$1:C56),INDIRECT("$R$7"&":$R$"&MATCH(MAX(S:S),S:S,0)),0))) -> 
A63: =IF(TRIM(B63)="","",COUNTA($B$7:B63)) ->  | G63: 0 | N63: 0 | S63: =IF(COUNTIF($C$7:C63,C63)=1,MAX($S$1:S57)+1,"") ->  | T63: =IF(ROWS($C$7:C63)>ROW(INDIRECT(ADDRESS(MAX(S:S),2))),"",INDEX(INDIRECT("$C$7"&":$C$"&MATCH(MAX(S:S),S:S,0)),MATCH(ROWS($C$1:C57),INDIRECT("$R$7"&":$R$"&MATCH(MAX(S:S),S:S,0)),0))) -> 
A64: =IF(TRIM(B64)="","",COUNTA($B$7:B64)) ->  | G64: 0 | N64: 0 | S64: =IF(COUNTIF($C$7:C64,C64)=1,MAX($S$1:S58)+1,"") ->  | T64: =IF(ROWS($C$7:C64)>ROW(INDIRECT(ADDRESS(MAX(S:S),2))),"",INDEX(INDIRECT("$C$7"&":$C$"&MATCH(MAX(S:S),S:S,0)),MATCH(ROWS($C$1:C58),INDIRECT("$R$7"&":$R$"&MATCH(MAX(S:S),S:S,0)),0))) -> 
A65: =IF(TRIM(B65)="","",COUNTA($B$7:B65)) ->  | G65: 0 | N65: 0 | S65: =IF(COUNTIF($C$7:C65,C65)=1,MAX($S$1:S59)+1,"") ->  | T65: =IF(ROWS($C$7:C65)>ROW(INDIRECT(ADDRESS(MAX(S:S),2))),"",INDEX(INDIRECT("$C$7"&":$C$"&MATCH(MAX(S:S),S:S,0)),MATCH(ROWS($C$1:C59),INDIRECT("$R$7"&":$R$"&MATCH(MAX(S:S),S:S,0)),0))) -> 
A66: =IF(TRIM(B66)="","",COUNTA($B$7:B66)) ->  | G66: 0 | N66: 0 | S66: =IF(COUNTIF($C$7:C66,C66)=1,MAX($S$1:S60)+1,"") ->  | T66: =IF(ROWS($C$7:C66)>ROW(INDIRECT(ADDRESS(MAX(S:S),2))),"",INDEX(INDIRECT("$C$7"&":$C$"&MATCH(MAX(S:S),S:S,0)),MATCH(ROWS($C$1:C60),INDIRECT("$R$7"&":$R$"&MATCH(MAX(S:S),S:S,0)),0))) -> 
A67: =IF(TRIM(B67)="","",COUNTA($B$7:B67)) ->  | G67: 0 | N67: 0 | S67: =IF(COUNTIF($C$7:C67,C67)=1,MAX($S$1:S61)+1,"") ->  | T67: =IF(ROWS($C$7:C67)>ROW(INDIRECT(ADDRESS(MAX(S:S),2))),"",INDEX(INDIRECT("$C$7"&":$C$"&MATCH(MAX(S:S),S:S,0)),MATCH(ROWS($C$1:C61),INDIRECT("$R$7"&":$R$"&MATCH(MAX(S:S),S:S,0)),0))) -> 
A68: =IF(TRIM(B68)="","",COUNTA($B$7:B68)) ->  | G68: 0 | N68: 0 | S68: =IF(COUNTIF($C$7:C68,C68)=1,MAX($S$1:S62)+1,"") ->  | T68: =IF(ROWS($C$7:C68)>ROW(INDIRECT(ADDRESS(MAX(S:S),2))),"",INDEX(INDIRECT("$C$7"&":$C$"&MATCH(MAX(S:S),S:S,0)),MATCH(ROWS($C$1:C62),INDIRECT("$R$7"&":$R$"&MATCH(MAX(S:S),S:S,0)),0))) -> 
A69: =IF(TRIM(B69)="","",COUNTA($B$7:B69)) ->  | G69: 0 | N69: 0 | S69: =IF(COUNTIF($C$7:C69,C69)=1,MAX($S$1:S63)+1,"") ->  | T69: =IF(ROWS($C$7:C69)>ROW(INDIRECT(ADDRESS(MAX(S:S),2))),"",INDEX(INDIRECT("$C$7"&":$C$"&MATCH(MAX(S:S),S:S,0)),MATCH(ROWS($C$1:C63),INDIRECT("$R$7"&":$R$"&MATCH(MAX(S:S),S:S,0)),0))) -> 
A70: =IF(TRIM(B70)="","",COUNTA($B$7:B70)) ->  | G70: 0 | N70: 0 | S70: =IF(COUNTIF($C$7:C70,C70)=1,MAX($S$1:S64)+1,"") ->  | T70: =IF(ROWS($C$7:C70)>ROW(INDIRECT(ADDRESS(MAX(S:S),2))),"",INDEX(INDIRECT("$C$7"&":$C$"&MATCH(MAX(S:S),S:S,0)),MATCH(ROWS($C$1:C64),INDIRECT("$R$7"&":$R$"&MATCH(MAX(S:S),S:S,0)),0))) -> 
A71: =IF(TRIM(B71)="","",COUNTA($B$7:B71)) ->  | G71: 0 | N71: 0 | S71: =IF(COUNTIF($C$7:C71,C71)=1,MAX($S$1:S65)+1,"") ->  | T71: =IF(ROWS($C$7:C71)>ROW(INDIRECT(ADDRESS(MAX(S:S),2))),"",INDEX(INDIRECT("$C$7"&":$C$"&MATCH(MAX(S:S),S:S,0)),MATCH(ROWS($C$1:C65),INDIRECT("$R$7"&":$R$"&MATCH(MAX(S:S),S:S,0)),0))) -> 
A72: =IF(TRIM(B72)="","",COUNTA($B$7:B72)) ->  | G72: =E72*D72 -> 0 | N72: =M72*L72 -> 0 | S72: =IF(COUNTIF($C$7:C72,C72)=1,MAX($S$1:S66)+1,"") ->  | T72: =IF(ROWS($C$7:C72)>ROW(INDIRECT(ADDRESS(MAX(S:S),2))),"",INDEX(INDIRECT("$C$7"&":$C$"&MATCH(MAX(S:S),S:S,0)),MATCH(ROWS($C$1:C66),INDIRECT("$R$7"&":$R$"&MATCH(MAX(S:S),S:S,0)),0))) -> 
A73: =IF(TRIM(B73)="","",COUNTA($B$7:B73)) ->  | G73: 0 | N73: 0 | S73: =IF(COUNTIF($C$7:C73,C73)=1,MAX($S$1:S67)+1,"") ->  | T73: =IF(ROWS($C$7:C73)>ROW(INDIRECT(ADDRESS(MAX(S:S),2))),"",INDEX(INDIRECT("$C$7"&":$C$"&MATCH(MAX(S:S),S:S,0)),MATCH(ROWS($C$1:C67),INDIRECT("$R$7"&":$R$"&MATCH(MAX(S:S),S:S,0)),0))) -> 
A74: =IF(TRIM(B74)="","",COUNTA($B$7:B74)) ->  | G74: 0 | N74: 0 | S74: =IF(COUNTIF($C$7:C74,C74)=1,MAX($S$1:S68)+1,"") ->  | T74: =IF(ROWS($C$7:C74)>ROW(INDIRECT(ADDRESS(MAX(S:S),2))),"",INDEX(INDIRECT("$C$7"&":$C$"&MATCH(MAX(S:S),S:S,0)),MATCH(ROWS($C$1:C68),INDIRECT("$R$7"&":$R$"&MATCH(MAX(S:S),S:S,0)),0))) -> 
A75: =IF(TRIM(B75)="","",COUNTA($B$7:B75)) ->  | G75: 0 | N75: 0 | S75: =IF(COUNTIF($C$7:C75,C75)=1,MAX($S$1:S69)+1,"") ->  | T75: =IF(ROWS($C$7:C75)>ROW(INDIRECT(ADDRESS(MAX(S:S),2))),"",INDEX(INDIRECT("$C$7"&":$C$"&MATCH(MAX(S:S),S:S,0)),MATCH(ROWS($C$1:C69),INDIRECT("$R$7"&":$R$"&MATCH(MAX(S:S),S:S,0)),0))) -> 
A76: =IF(TRIM(B76)="","",COUNTA($B$7:B76)) ->  | G76: 0 | N76: 0 | S76: =IF(COUNTIF($C$7:C76,C76)=1,MAX($S$1:S70)+1,"") ->  | T76: =IF(ROWS($C$7:C76)>ROW(INDIRECT(ADDRESS(MAX(S:S),2))),"",INDEX(INDIRECT("$C$7"&":$C$"&MATCH(MAX(S:S),S:S,0)),MATCH(ROWS($C$1:C70),INDIRECT("$R$7"&":$R$"&MATCH(MAX(S:S),S:S,0)),0))) -> 
A77: =IF(TRIM(B77)="","",COUNTA($B$7:B77)) ->  | G77: 0 | N77: 0 | S77: =IF(COUNTIF($C$7:C77,C77)=1,MAX($S$1:S71)+1,"") ->  | T77: =IF(ROWS($C$7:C77)>ROW(INDIRECT(ADDRESS(MAX(S:S),2))),"",INDEX(INDIRECT("$C$7"&":$C$"&MATCH(MAX(S:S),S:S,0)),MATCH(ROWS($C$1:C71),INDIRECT("$R$7"&":$R$"&MATCH(MAX(S:S),S:S,0)),0))) -> 
A78: =IF(TRIM(B78)="","",COUNTA($B$7:B78)) ->  | G78: 0 | N78: 0 | S78: =IF(COUNTIF($C$7:C78,C78)=1,MAX($S$1:S72)+1,"") ->  | T78: =IF(ROWS($C$7:C78)>ROW(INDIRECT(ADDRESS(MAX(S:S),2))),"",INDEX(INDIRECT("$C$7"&":$C$"&MATCH(MAX(S:S),S:S,0)),MATCH(ROWS($C$1:C72),INDIRECT("$R$7"&":$R$"&MATCH(MAX(S:S),S:S,0)),0))) -> 
A79: =IF(TRIM(B79)="","",COUNTA($B$7:B79)) ->  | G79: 0 | N79: 0 | S79: =IF(COUNTIF($C$7:C79,C79)=1,MAX($S$1:S73)+1,"") ->  | T79: =IF(ROWS($C$7:C79)>ROW(INDIRECT(ADDRESS(MAX(S:S),2))),"",INDEX(INDIRECT("$C$7"&":$C$"&MATCH(MAX(S:S),S:S,0)),MATCH(ROWS($C$1:C73),INDIRECT("$R$7"&":$R$"&MATCH(MAX(S:S),S:S,0)),0))) -> 
A80: =IF(TRIM(B80)="","",COUNTA($B$7:B80)) ->  | G80: 0 | N80: 0 | S80: =IF(COUNTIF($C$7:C80,C80)=1,MAX($S$1:S74)+1,"") ->  | T80: =IF(ROWS($C$7:C80)>ROW(INDIRECT(ADDRESS(MAX(S:S),2))),"",INDEX(INDIRECT("$C$7"&":$C$"&MATCH(MAX(S:S),S:S,0)),MATCH(ROWS($C$1:C74),INDIRECT("$R$7"&":$R$"&MATCH(MAX(S:S),S:S,0)),0))) -> 
A81: =IF(TRIM(B81)="","",COUNTA($B$7:B81)) ->  | G81: 0 | N81: 0 | S81: =IF(COUNTIF($C$7:C81,C81)=1,MAX($S$1:S75)+1,"") ->  | T81: =IF(ROWS($C$7:C81)>ROW(INDIRECT(ADDRESS(MAX(S:S),2))),"",INDEX(INDIRECT("$C$7"&":$C$"&MATCH(MAX(S:S),S:S,0)),MATCH(ROWS($C$1:C75),INDIRECT("$R$7"&":$R$"&MATCH(MAX(S:S),S:S,0)),0))) -> 
A82: =IF(TRIM(B82)="","",COUNTA($B$7:B82)) ->  | G82: 0 | N82: 0 | S82: =IF(COUNTIF($C$7:C82,C82)=1,MAX($S$1:S76)+1,"") ->  | T82: =IF(ROWS($C$7:C82)>ROW(INDIRECT(ADDRESS(MAX(S:S),2))),"",INDEX(INDIRECT("$C$7"&":$C$"&MATCH(MAX(S:S),S:S,0)),MATCH(ROWS($C$1:C76),INDIRECT("$R$7"&":$R$"&MATCH(MAX(S:S),S:S,0)),0))) -> 
A83: =IF(TRIM(B83)="","",COUNTA($B$7:B83)) ->  | G83: 0 | N83: 0 | S83: =IF(COUNTIF($C$7:C83,C83)=1,MAX($S$1:S77)+1,"") ->  | T83: =IF(ROWS($C$7:C83)>ROW(INDIRECT(ADDRESS(MAX(S:S),2))),"",INDEX(INDIRECT("$C$7"&":$C$"&MATCH(MAX(S:S),S:S,0)),MATCH(ROWS($C$1:C77),INDIRECT("$R$7"&":$R$"&MATCH(MAX(S:S),S:S,0)),0))) -> 
A84: =IF(TRIM(B84)="","",COUNTA($B$7:B84)) ->  | G84: 0 | N84: 0 | S84: =IF(COUNTIF($C$7:C84,C84)=1,MAX($S$1:S78)+1,"") ->  | T84: =IF(ROWS($C$7:C84)>ROW(INDIRECT(ADDRESS(MAX(S:S),2))),"",INDEX(INDIRECT("$C$7"&":$C$"&MATCH(MAX(S:S),S:S,0)),MATCH(ROWS($C$1:C78),INDIRECT("$R$7"&":$R$"&MATCH(MAX(S:S),S:S,0)),0))) -> 
A85: =IF(TRIM(B85)="","",COUNTA($B$7:B85)) ->  | G85: 0 | N85: 0 | S85: =IF(COUNTIF($C$7:C85,C85)=1,MAX($S$1:S79)+1,"") ->  | T85: =IF(ROWS($C$7:C85)>ROW(INDIRECT(ADDRESS(MAX(S:S),2))),"",INDEX(INDIRECT("$C$7"&":$C$"&MATCH(MAX(S:S),S:S,0)),MATCH(ROWS($C$1:C79),INDIRECT("$R$7"&":$R$"&MATCH(MAX(S:S),S:S,0)),0))) -> 
A86: =IF(TRIM(B86)="","",COUNTA($B$7:B86)) ->  | G86: 0 | N86: 0 | S86: =IF(COUNTIF($C$7:C86,C86)=1,MAX($S$1:S80)+1,"") ->  | T86: =IF(ROWS($C$7:C86)>ROW(INDIRECT(ADDRESS(MAX(S:S),2))),"",INDEX(INDIRECT("$C$7"&":$C$"&MATCH(MAX(S:S),S:S,0)),MATCH(ROWS($C$1:C80),INDIRECT("$R$7"&":$R$"&MATCH(MAX(S:S),S:S,0)),0))) -> 
A87: =IF(TRIM(B87)="","",COUNTA($B$7:B87)) ->  | G87: 0 | N87: 0 | S87: =IF(COUNTIF($C$7:C87,C87)=1,MAX($S$1:S81)+1,"") ->  | T87: =IF(ROWS($C$7:C87)>ROW(INDIRECT(ADDRESS(MAX(S:S),2))),"",INDEX(INDIRECT("$C$7"&":$C$"&MATCH(MAX(S:S),S:S,0)),MATCH(ROWS($C$1:C81),INDIRECT("$R$7"&":$R$"&MATCH(MAX(S:S),S:S,0)),0))) -> 
A88: =IF(TRIM(B88)="","",COUNTA($B$7:B88)) ->  | G88: 0 | N88: 0 | S88: =IF(COUNTIF($C$7:C88,C88)=1,MAX($S$1:S82)+1,"") ->  | T88: =IF(ROWS($C$7:C88)>ROW(INDIRECT(ADDRESS(MAX(S:S),2))),"",INDEX(INDIRECT("$C$7"&":$C$"&MATCH(MAX(S:S),S:S,0)),MATCH(ROWS($C$1:C82),INDIRECT("$R$7"&":$R$"&MATCH(MAX(S:S),S:S,0)),0))) -> 
A89: =IF(TRIM(B89)="","",COUNTA($B$7:B89)) ->  | G89: 0 | N89: 0 | S89: =IF(COUNTIF($C$7:C89,C89)=1,MAX($S$1:S83)+1,"") ->  | T89: =IF(ROWS($C$7:C89)>ROW(INDIRECT(ADDRESS(MAX(S:S),2))),"",INDEX(INDIRECT("$C$7"&":$C$"&MATCH(MAX(S:S),S:S,0)),MATCH(ROWS($C$1:C83),INDIRECT("$R$7"&":$R$"&MATCH(MAX(S:S),S:S,0)),0))) -> 
A90: =IF(TRIM(B90)="","",COUNTA($B$7:B90)) ->  | G90: 0 | N90: 0 | S90: =IF(COUNTIF($C$7:C90,C90)=1,MAX($S$1:S84)+1,"") ->  | T90: =IF(ROWS($C$7:C90)>ROW(INDIRECT(ADDRESS(MAX(S:S),2))),"",INDEX(INDIRECT("$C$7"&":$C$"&MATCH(MAX(S:S),S:S,0)),MATCH(ROWS($C$1:C84),INDIRECT("$R$7"&":$R$"&MATCH(MAX(S:S),S:S,0)),0))) -> 
A91: =IF(TRIM(B91)="","",COUNTA($B$7:B91)) ->  | G91: 0 | N91: 0 | S91: =IF(COUNTIF($C$7:C91,C91)=1,MAX($S$1:S85)+1,"") ->  | T91: =IF(ROWS($C$7:C91)>ROW(INDIRECT(ADDRESS(MAX(S:S),2))),"",INDEX(INDIRECT("$C$7"&":$C$"&MATCH(MAX(S:S),S:S,0)),MATCH(ROWS($C$1:C85),INDIRECT("$R$7"&":$R$"&MATCH(MAX(S:S),S:S,0)),0))) -> 
A92: =IF(TRIM(B92)="","",COUNTA($B$7:B92)) ->  | G92: 0 | N92: 0 | S92: =IF(COUNTIF($C$7:C92,C92)=1,MAX($S$1:S86)+1,"") ->  | T92: =IF(ROWS($C$7:C92)>ROW(INDIRECT(ADDRESS(MAX(S:S),2))),"",INDEX(INDIRECT("$C$7"&":$C$"&MATCH(MAX(S:S),S:S,0)),MATCH(ROWS($C$1:C86),INDIRECT("$R$7"&":$R$"&MATCH(MAX(S:S),S:S,0)),0))) -> 
A93: =IF(TRIM(B93)="","",COUNTA($B$7:B93)) ->  | G93: 0 | N93: 0 | S93: =IF(COUNTIF($C$7:C93,C93)=1,MAX($S$1:S87)+1,"") ->  | T93: =IF(ROWS($C$7:C93)>ROW(INDIRECT(ADDRESS(MAX(S:S),2))),"",INDEX(INDIRECT("$C$7"&":$C$"&MATCH(MAX(S:S),S:S,0)),MATCH(ROWS($C$1:C87),INDIRECT("$R$7"&":$R$"&MATCH(MAX(S:S),S:S,0)),0))) -> 
A94: =IF(TRIM(B94)="","",COUNTA($B$7:B94)) ->  | G94: 0 | N94: 0 | S94: =IF(COUNTIF($C$7:C94,C94)=1,MAX($S$1:S88)+1,"") ->  | T94: =IF(ROWS($C$7:C94)>ROW(INDIRECT(ADDRESS(MAX(S:S),2))),"",INDEX(INDIRECT("$C$7"&":$C$"&MATCH(MAX(S:S),S:S,0)),MATCH(ROWS($C$1:C88),INDIRECT("$R$7"&":$R$"&MATCH(MAX(S:S),S:S,0)),0))) -> 
A95: =IF(TRIM(B95)="","",COUNTA($B$7:B95)) ->  | G95: 0 | N95: 0 | S95: =IF(COUNTIF($C$7:C95,C95)=1,MAX($S$1:S89)+1,"") ->  | T95: =IF(ROWS($C$7:C95)>ROW(INDIRECT(ADDRESS(MAX(S:S),2))),"",INDEX(INDIRECT("$C$7"&":$C$"&MATCH(MAX(S:S),S:S,0)),MATCH(ROWS($C$1:C89),INDIRECT("$R$7"&":$R$"&MATCH(MAX(S:S),S:S,0)),0))) -> 
A96: =IF(TRIM(B96)="","",COUNTA($B$7:B96)) ->  | G96: 0 | N96: 0 | S96: =IF(COUNTIF($C$7:C96,C96)=1,MAX($S$1:S90)+1,"") ->  | T96: =IF(ROWS($C$7:C96)>ROW(INDIRECT(ADDRESS(MAX(S:S),2))),"",INDEX(INDIRECT("$C$7"&":$C$"&MATCH(MAX(S:S),S:S,0)),MATCH(ROWS($C$1:C90),INDIRECT("$R$7"&":$R$"&MATCH(MAX(S:S),S:S,0)),0))) -> 
A97: =IF(TRIM(B97)="","",COUNTA($B$7:B97)) ->  | G97: 0 | N97: 0 | S97: =IF(COUNTIF($C$7:C97,C97)=1,MAX($S$1:S91)+1,"") ->  | T97: =IF(ROWS($C$7:C97)>ROW(INDIRECT(ADDRESS(MAX(S:S),2))),"",INDEX(INDIRECT("$C$7"&":$C$"&MATCH(MAX(S:S),S:S,0)),MATCH(ROWS($C$1:C91),INDIRECT("$R$7"&":$R$"&MATCH(MAX(S:S),S:S,0)),0))) -> 
A98: =IF(TRIM(B98)="","",COUNTA($B$7:B98)) ->  | G98: 0 | N98: 0 | S98: =IF(COUNTIF($C$7:C98,C98)=1,MAX($S$1:S92)+1,"") ->  | T98: =IF(ROWS($C$7:C98)>ROW(INDIRECT(ADDRESS(MAX(S:S),2))),"",INDEX(INDIRECT("$C$7"&":$C$"&MATCH(MAX(S:S),S:S,0)),MATCH(ROWS($C$1:C92),INDIRECT("$R$7"&":$R$"&MATCH(MAX(S:S),S:S,0)),0))) -> 
A99: =IF(TRIM(B99)="","",COUNTA($B$7:B99)) ->  | G99: 0 | N99: 0 | S99: =IF(COUNTIF($C$7:C99,C99)=1,MAX($S$1:S93)+1,"") ->  | T99: =IF(ROWS($C$7:C99)>ROW(INDIRECT(ADDRESS(MAX(S:S),2))),"",INDEX(INDIRECT("$C$7"&":$C$"&MATCH(MAX(S:S),S:S,0)),MATCH(ROWS($C$1:C93),INDIRECT("$R$7"&":$R$"&MATCH(MAX(S:S),S:S,0)),0))) -> 
A100: =IF(TRIM(B100)="","",COUNTA($B$7:B100)) ->  | G100: 0 | N100: 0 | S100: =IF(COUNTIF($C$7:C100,C100)=1,MAX($S$1:S94)+1,"") ->  | T100: =IF(ROWS($C$7:C100)>ROW(INDIRECT(ADDRESS(MAX(S:S),2))),"",INDEX(INDIRECT("$C$7"&":$C$"&MATCH(MAX(S:S),S:S,0)),MATCH(ROWS($C$1:C94),INDIRECT("$R$7"&":$R$"&MATCH(MAX(S:S),S:S,0)),0))) -> 
A101: =IF(TRIM(B101)="","",COUNTA($B$7:B101)) ->  | G101: 0 | N101: 0 | S101: =IF(COUNTIF($C$7:C101,C101)=1,MAX($S$1:S95)+1,"") ->  | T101: =IF(ROWS($C$7:C101)>ROW(INDIRECT(ADDRESS(MAX(S:S),2))),"",INDEX(INDIRECT("$C$7"&":$C$"&MATCH(MAX(S:S),S:S,0)),MATCH(ROWS($C$1:C95),INDIRECT("$R$7"&":$R$"&MATCH(MAX(S:S),S:S,0)),0))) -> 
A102: =IF(TRIM(B102)="","",COUNTA($B$7:B102)) ->  | G102: 0 | N102: 0 | S102: =IF(COUNTIF($C$7:C102,C102)=1,MAX($S$1:S96)+1,"") ->  | T102: =IF(ROWS($C$7:C102)>ROW(INDIRECT(ADDRESS(MAX(S:S),2))),"",INDEX(INDIRECT("$C$7"&":$C$"&MATCH(MAX(S:S),S:S,0)),MATCH(ROWS($C$1:C96),INDIRECT("$R$7"&":$R$"&MATCH(MAX(S:S),S:S,0)),0))) -> 
A103: =IF(TRIM(B103)="","",COUNTA($B$7:B103)) ->  | G103: 0 | N103: 0 | S103: =IF(COUNTIF($C$7:C103,C103)=1,MAX($S$1:S97)+1,"") ->  | T103: =IF(ROWS($C$7:C103)>ROW(INDIRECT(ADDRESS(MAX(S:S),2))),"",INDEX(INDIRECT("$C$7"&":$C$"&MATCH(MAX(S:S),S:S,0)),MATCH(ROWS($C$1:C97),INDIRECT("$R$7"&":$R$"&MATCH(MAX(S:S),S:S,0)),0))) -> 
A104: =IF(TRIM(B104)="","",COUNTA($B$7:B104)) ->  | G104: 0 | N104: 0 | S104: =IF(COUNTIF($C$7:C104,C104)=1,MAX($S$1:S98)+1,"") ->  | T104: =IF(ROWS($C$7:C104)>ROW(INDIRECT(ADDRESS(MAX(S:S),2))),"",INDEX(INDIRECT("$C$7"&":$C$"&MATCH(MAX(S:S),S:S,0)),MATCH(ROWS($C$1:C98),INDIRECT("$R$7"&":$R$"&MATCH(MAX(S:S),S:S,0)),0))) -> 
A105: =IF(TRIM(B105)="","",COUNTA($B$7:B105)) ->  | G105: 0 | N105: 0 | S105: =IF(COUNTIF($C$7:C105,C105)=1,MAX($S$1:S99)+1,"") ->  | T105: =IF(ROWS($C$7:C105)>ROW(INDIRECT(ADDRESS(MAX(S:S),2))),"",INDEX(INDIRECT("$C$7"&":$C$"&MATCH(MAX(S:S),S:S,0)),MATCH(ROWS($C$1:C99),INDIRECT("$R$7"&":$R$"&MATCH(MAX(S:S),S:S,0)),0))) -> 
A106: =IF(TRIM(B106)="","",COUNTA($B$7:B106)) ->  | G106: 0 | N106: 0 | S106: =IF(COUNTIF($C$7:C106,C106)=1,MAX($S$1:S100)+1,"") ->  | T106: =IF(ROWS($C$7:C106)>ROW(INDIRECT(ADDRESS(MAX(S:S),2))),"",INDEX(INDIRECT("$C$7"&":$C$"&MATCH(MAX(S:S),S:S,0)),MATCH(ROWS($C$1:C100),INDIRECT("$R$7"&":$R$"&MATCH(MAX(S:S),S:S,0)),0))) -> 
A107: =IF(TRIM(B107)="","",COUNTA($B$7:B107)) ->  | G107: 0 | N107: 0 | S107: =IF(COUNTIF($C$7:C107,C107)=1,MAX($S$1:S101)+1,"") ->  | T107: =IF(ROWS($C$7:C107)>ROW(INDIRECT(ADDRESS(MAX(S:S),2))),"",INDEX(INDIRECT("$C$7"&":$C$"&MATCH(MAX(S:S),S:S,0)),MATCH(ROWS($C$1:C101),INDIRECT("$R$7"&":$R$"&MATCH(MAX(S:S),S:S,0)),0))) -> 
A108: =IF(TRIM(B108)="","",COUNTA($B$7:B108)) ->  | G108: 0 | N108: 0 | S108: =IF(COUNTIF($C$7:C108,C108)=1,MAX($S$1:S102)+1,"") ->  | T108: =IF(ROWS($C$7:C108)>ROW(INDIRECT(ADDRESS(MAX(S:S),2))),"",INDEX(INDIRECT("$C$7"&":$C$"&MATCH(MAX(S:S),S:S,0)),MATCH(ROWS($C$1:C102),INDIRECT("$R$7"&":$R$"&MATCH(MAX(S:S),S:S,0)),0))) -> 
A109: =IF(TRIM(B109)="","",COUNTA($B$7:B109)) ->  | G109: 0 | N109: 0 | S109: =IF(COUNTIF($C$7:C109,C109)=1,MAX($S$1:S103)+1,"") ->  | T109: =IF(ROWS($C$7:C109)>ROW(INDIRECT(ADDRESS(MAX(S:S),2))),"",INDEX(INDIRECT("$C$7"&":$C$"&MATCH(MAX(S:S),S:S,0)),MATCH(ROWS($C$1:C103),INDIRECT("$R$7"&":$R$"&MATCH(MAX(S:S),S:S,0)),0))) -> 
A110: =IF(TRIM(B110)="","",COUNTA($B$7:B110)) ->  | G110: 0 | N110: 0 | S110: =IF(COUNTIF($C$7:C110,C110)=1,MAX($S$1:S104)+1,"") ->  | T110: =IF(ROWS($C$7:C110)>ROW(INDIRECT(ADDRESS(MAX(S:S),2))),"",INDEX(INDIRECT("$C$7"&":$C$"&MATCH(MAX(S:S),S:S,0)),MATCH(ROWS($C$1:C104),INDIRECT("$R$7"&":$R$"&MATCH(MAX(S:S),S:S,0)),0))) -> 
A111: =IF(TRIM(B111)="","",COUNTA($B$7:B111)) ->  | G111: 0 | N111: 0 | S111: =IF(COUNTIF($C$7:C111,C111)=1,MAX($S$1:S105)+1,"") ->  | T111: =IF(ROWS($C$7:C111)>ROW(INDIRECT(ADDRESS(MAX(S:S),2))),"",INDEX(INDIRECT("$C$7"&":$C$"&MATCH(MAX(S:S),S:S,0)),MATCH(ROWS($C$1:C105),INDIRECT("$R$7"&":$R$"&MATCH(MAX(S:S),S:S,0)),0))) -> 
A112: =IF(TRIM(B112)="","",COUNTA($B$7:B112)) ->  | G112: 0 | N112: 0 | S112: =IF(COUNTIF($C$7:C112,C112)=1,MAX($S$1:S106)+1,"") ->  | T112: =IF(ROWS($C$7:C112)>ROW(INDIRECT(ADDRESS(MAX(S:S),2))),"",INDEX(INDIRECT("$C$7"&":$C$"&MATCH(MAX(S:S),S:S,0)),MATCH(ROWS($C$1:C106),INDIRECT("$R$7"&":$R$"&MATCH(MAX(S:S),S:S,0)),0))) -> 
A113: =IF(TRIM(B113)="","",COUNTA($B$7:B113)) ->  | G113: 0 | N113: 0 | S113: =IF(COUNTIF($C$7:C113,C113)=1,MAX($S$1:S107)+1,"") ->  | T113: =IF(ROWS($C$7:C113)>ROW(INDIRECT(ADDRESS(MAX(S:S),2))),"",INDEX(INDIRECT("$C$7"&":$C$"&MATCH(MAX(S:S),S:S,0)),MATCH(ROWS($C$1:C107),INDIRECT("$R$7"&":$R$"&MATCH(MAX(S:S),S:S,0)),0))) -> 
A114: =IF(TRIM(B114)="","",COUNTA($B$7:B114)) ->  | G114: 0 | N114: 0 | S114: =IF(COUNTIF($C$7:C114,C114)=1,MAX($S$1:S108)+1,"") ->  | T114: =IF(ROWS($C$7:C114)>ROW(INDIRECT(ADDRESS(MAX(S:S),2))),"",INDEX(INDIRECT("$C$7"&":$C$"&MATCH(MAX(S:S),S:S,0)),MATCH(ROWS($C$1:C108),INDIRECT("$R$7"&":$R$"&MATCH(MAX(S:S),S:S,0)),0))) -> 
A115: =IF(TRIM(B115)="","",COUNTA($B$7:B115)) ->  | G115: 0 | N115: 0 | S115: =IF(COUNTIF($C$7:C115,C115)=1,MAX($S$1:S109)+1,"") ->  | T115: =IF(ROWS($C$7:C115)>ROW(INDIRECT(ADDRESS(MAX(S:S),2))),"",INDEX(INDIRECT("$C$7"&":$C$"&MATCH(MAX(S:S),S:S,0)),MATCH(ROWS($C$1:C109),INDIRECT("$R$7"&":$R$"&MATCH(MAX(S:S),S:S,0)),0))) -> 
A116: =IF(TRIM(B116)="","",COUNTA($B$7:B116)) ->  | G116: 0 | N116: 0 | S116: =IF(COUNTIF($C$7:C116,C116)=1,MAX($S$1:S110)+1,"") ->  | T116: =IF(ROWS($C$7:C116)>ROW(INDIRECT(ADDRESS(MAX(S:S),2))),"",INDEX(INDIRECT("$C$7"&":$C$"&MATCH(MAX(S:S),S:S,0)),MATCH(ROWS($C$1:C110),INDIRECT("$R$7"&":$R$"&MATCH(MAX(S:S),S:S,0)),0))) -> 
A117: =IF(TRIM(B117)="","",COUNTA($B$7:B117)) ->  | G117: 0 | N117: 0 | S117: =IF(COUNTIF($C$7:C117,C117)=1,MAX($S$1:S111)+1,"") ->  | T117: =IF(ROWS($C$7:C117)>ROW(INDIRECT(ADDRESS(MAX(S:S),2))),"",INDEX(INDIRECT("$C$7"&":$C$"&MATCH(MAX(S:S),S:S,0)),MATCH(ROWS($C$1:C111),INDIRECT("$R$7"&":$R$"&MATCH(MAX(S:S),S:S,0)),0))) -> 
A118: =IF(TRIM(B118)="","",COUNTA($B$7:B118)) ->  | G118: 0 | N118: 0 | S118: =IF(COUNTIF($C$7:C118,C118)=1,MAX($S$1:S112)+1,"") ->  | T118: =IF(ROWS($C$7:C118)>ROW(INDIRECT(ADDRESS(MAX(S:S),2))),"",INDEX(INDIRECT("$C$7"&":$C$"&MATCH(MAX(S:S),S:S,0)),MATCH(ROWS($C$1:C112),INDIRECT("$R$7"&":$R$"&MATCH(MAX(S:S),S:S,0)),0))) -> 
A119: =IF(TRIM(B119)="","",COUNTA($B$7:B119)) ->  | G119: 0 | N119: 0 | S119: =IF(COUNTIF($C$7:C119,C119)=1,MAX($S$1:S113)+1,"") ->  | T119: =IF(ROWS($C$7:C119)>ROW(INDIRECT(ADDRESS(MAX(S:S),2))),"",INDEX(INDIRECT("$C$7"&":$C$"&MATCH(MAX(S:S),S:S,0)),MATCH(ROWS($C$1:C113),INDIRECT("$R$7"&":$R$"&MATCH(MAX(S:S),S:S,0)),0))) -> 
A120: =IF(TRIM(B120)="","",COUNTA($B$7:B120)) ->  | G120: 0 | N120: 0 | S120: =IF(COUNTIF($C$7:C120,C120)=1,MAX($S$1:S114)+1,"") ->  | T120: =IF(ROWS($C$7:C120)>ROW(INDIRECT(ADDRESS(MAX(S:S),2))),"",INDEX(INDIRECT("$C$7"&":$C$"&MATCH(MAX(S:S),S:S,0)),MATCH(ROWS($C$1:C114),INDIRECT("$R$7"&":$R$"&MATCH(MAX(S:S),S:S,0)),0))) -> 
A121: =IF(TRIM(B121)="","",COUNTA($B$7:B121)) ->  | G121: 0 | N121: 0 | S121: =IF(COUNTIF($C$7:C121,C121)=1,MAX($S$1:S115)+1,"") ->  | T121: =IF(ROWS($C$7:C121)>ROW(INDIRECT(ADDRESS(MAX(S:S),2))),"",INDEX(INDIRECT("$C$7"&":$C$"&MATCH(MAX(S:S),S:S,0)),MATCH(ROWS($C$1:C115),INDIRECT("$R$7"&":$R$"&MATCH(MAX(S:S),S:S,0)),0))) -> 
A122: =IF(TRIM(B122)="","",COUNTA($B$7:B122)) ->  | G122: 0 | N122: 0 | S122: =IF(COUNTIF($C$7:C122,C122)=1,MAX($S$1:S116)+1,"") ->  | T122: =IF(ROWS($C$7:C122)>ROW(INDIRECT(ADDRESS(MAX(S:S),2))),"",INDEX(INDIRECT("$C$7"&":$C$"&MATCH(MAX(S:S),S:S,0)),MATCH(ROWS($C$1:C116),INDIRECT("$R$7"&":$R$"&MATCH(MAX(S:S),S:S,0)),0))) -> 
A123: =IF(TRIM(B123)="","",COUNTA($B$7:B123)) ->  | G123: 0 | N123: 0 | S123: =IF(COUNTIF($C$7:C123,C123)=1,MAX($S$1:S117)+1,"") ->  | T123: =IF(ROWS($C$7:C123)>ROW(INDIRECT(ADDRESS(MAX(S:S),2))),"",INDEX(INDIRECT("$C$7"&":$C$"&MATCH(MAX(S:S),S:S,0)),MATCH(ROWS($C$1:C117),INDIRECT("$R$7"&":$R$"&MATCH(MAX(S:S),S:S,0)),0))) -> 
A124: =IF(TRIM(B124)="","",COUNTA($B$7:B124)) ->  | G124: 0 | N124: 0 | S124: =IF(COUNTIF($C$7:C124,C124)=1,MAX($S$1:S118)+1,"") ->  | T124: =IF(ROWS($C$7:C124)>ROW(INDIRECT(ADDRESS(MAX(S:S),2))),"",INDEX(INDIRECT("$C$7"&":$C$"&MATCH(MAX(S:S),S:S,0)),MATCH(ROWS($C$1:C118),INDIRECT("$R$7"&":$R$"&MATCH(MAX(S:S),S:S,0)),0))) -> 
A125: =IF(TRIM(B125)="","",COUNTA($B$7:B125)) ->  | G125: 0 | N125: 0 | S125: =IF(COUNTIF($C$7:C125,C125)=1,MAX($S$1:S119)+1,"") ->  | T125: =IF(ROWS($C$7:C125)>ROW(INDIRECT(ADDRESS(MAX(S:S),2))),"",INDEX(INDIRECT("$C$7"&":$C$"&MATCH(MAX(S:S),S:S,0)),MATCH(ROWS($C$1:C119),INDIRECT("$R$7"&":$R$"&MATCH(MAX(S:S),S:S,0)),0))) -> 
A126: =IF(TRIM(B126)="","",COUNTA($B$7:B126)) ->  | G126: 0 | N126: 0 | S126: =IF(COUNTIF($C$7:C126,C126)=1,MAX($S$1:S120)+1,"") ->  | T126: =IF(ROWS($C$7:C126)>ROW(INDIRECT(ADDRESS(MAX(S:S),2))),"",INDEX(INDIRECT("$C$7"&":$C$"&MATCH(MAX(S:S),S:S,0)),MATCH(ROWS($C$1:C120),INDIRECT("$R$7"&":$R$"&MATCH(MAX(S:S),S:S,0)),0))) -> 
A127: =IF(TRIM(B127)="","",COUNTA($B$7:B127)) ->  | G127: 0 | N127: 0 | S127: =IF(COUNTIF($C$7:C127,C127)=1,MAX($S$1:S121)+1,"") ->  | T127: =IF(ROWS($C$7:C127)>ROW(INDIRECT(ADDRESS(MAX(S:S),2))),"",INDEX(INDIRECT("$C$7"&":$C$"&MATCH(MAX(S:S),S:S,0)),MATCH(ROWS($C$1:C121),INDIRECT("$R$7"&":$R$"&MATCH(MAX(S:S),S:S,0)),0))) -> 
A128: =IF(TRIM(B128)="","",COUNTA($B$7:B128)) ->  | G128: 0 | N128: 0 | S128: =IF(COUNTIF($C$7:C128,C128)=1,MAX($S$1:S122)+1,"") ->  | T128: =IF(ROWS($C$7:C128)>ROW(INDIRECT(ADDRESS(MAX(S:S),2))),"",INDEX(INDIRECT("$C$7"&":$C$"&MATCH(MAX(S:S),S:S,0)),MATCH(ROWS($C$1:C122),INDIRECT("$R$7"&":$R$"&MATCH(MAX(S:S),S:S,0)),0))) -> 
A129: =IF(TRIM(B129)="","",COUNTA($B$7:B129)) ->  | G129: 0 | N129: 0 | S129: =IF(COUNTIF($C$7:C129,C129)=1,MAX($S$1:S123)+1,"") ->  | T129: =IF(ROWS($C$7:C129)>ROW(INDIRECT(ADDRESS(MAX(S:S),2))),"",INDEX(INDIRECT("$C$7"&":$C$"&MATCH(MAX(S:S),S:S,0)),MATCH(ROWS($C$1:C123),INDIRECT("$R$7"&":$R$"&MATCH(MAX(S:S),S:S,0)),0))) -> 
A130: =IF(TRIM(B130)="","",COUNTA($B$7:B130)) ->  | G130: 0 | N130: 0 | S130: =IF(COUNTIF($C$7:C130,C130)=1,MAX($S$1:S124)+1,"") ->  | T130: =IF(ROWS($C$7:C130)>ROW(INDIRECT(ADDRESS(MAX(S:S),2))),"",INDEX(INDIRECT("$C$7"&":$C$"&MATCH(MAX(S:S),S:S,0)),MATCH(ROWS($C$1:C124),INDIRECT("$R$7"&":$R$"&MATCH(MAX(S:S),S:S,0)),0))) -> 
A131: =IF(TRIM(B131)="","",COUNTA($B$7:B131)) ->  | G131: 0 | N131: 0 | S131: =IF(COUNTIF($C$7:C131,C131)=1,MAX($S$1:S125)+1,"") ->  | T131: =IF(ROWS($C$7:C131)>ROW(INDIRECT(ADDRESS(MAX(S:S),2))),"",INDEX(INDIRECT("$C$7"&":$C$"&MATCH(MAX(S:S),S:S,0)),MATCH(ROWS($C$1:C125),INDIRECT("$R$7"&":$R$"&MATCH(MAX(S:S),S:S,0)),0))) -> 
A132: =IF(TRIM(B132)="","",COUNTA($B$7:B132)) ->  | G132: 0 | N132: 0 | S132: =IF(COUNTIF($C$7:C132,C132)=1,MAX($S$1:S126)+1,"") ->  | T132: =IF(ROWS($C$7:C132)>ROW(INDIRECT(ADDRESS(MAX(S:S),2))),"",INDEX(INDIRECT("$C$7"&":$C$"&MATCH(MAX(S:S),S:S,0)),MATCH(ROWS($C$1:C126),INDIRECT("$R$7"&":$R$"&MATCH(MAX(S:S),S:S,0)),0))) -> 
A133: =IF(TRIM(B133)="","",COUNTA($B$7:B133)) ->  | G133: 0 | N133: 0 | S133: =IF(COUNTIF($C$7:C133,C133)=1,MAX($S$1:S127)+1,"") ->  | T133: =IF(ROWS($C$7:C133)>ROW(INDIRECT(ADDRESS(MAX(S:S),2))),"",INDEX(INDIRECT("$C$7"&":$C$"&MATCH(MAX(S:S),S:S,0)),MATCH(ROWS($C$1:C127),INDIRECT("$R$7"&":$R$"&MATCH(MAX(S:S),S:S,0)),0))) -> 
A134: =IF(TRIM(B134)="","",COUNTA($B$7:B134)) ->  | G134: 0 | N134: 0 | S134: =IF(COUNTIF($C$7:C134,C134)=1,MAX($S$1:S128)+1,"") ->  | T134: =IF(ROWS($C$7:C134)>ROW(INDIRECT(ADDRESS(MAX(S:S),2))),"",INDEX(INDIRECT("$C$7"&":$C$"&MATCH(MAX(S:S),S:S,0)),MATCH(ROWS($C$1:C128),INDIRECT("$R$7"&":$R$"&MATCH(MAX(S:S),S:S,0)),0))) -> 
A135: =IF(TRIM(B135)="","",COUNTA($B$7:B135)) ->  | G135: 0 | N135: 0 | S135: =IF(COUNTIF($C$7:C135,C135)=1,MAX($S$1:S129)+1,"") ->  | T135: =IF(ROWS($C$7:C135)>ROW(INDIRECT(ADDRESS(MAX(S:S),2))),"",INDEX(INDIRECT("$C$7"&":$C$"&MATCH(MAX(S:S),S:S,0)),MATCH(ROWS($C$1:C129),INDIRECT("$R$7"&":$R$"&MATCH(MAX(S:S),S:S,0)),0))) -> 
A136: =IF(TRIM(B136)="","",COUNTA($B$7:B136)) ->  | G136: =E136*D136 -> 0 | N136: =M136*L136 -> 0 | S136: =IF(COUNTIF($C$7:C136,C136)=1,MAX($S$1:S130)+1,"") ->  | T136: =IF(ROWS($C$7:C136)>ROW(INDIRECT(ADDRESS(MAX(S:S),2))),"",INDEX(INDIRECT("$C$7"&":$C$"&MATCH(MAX(S:S),S:S,0)),MATCH(ROWS($C$1:C130),INDIRECT("$R$7"&":$R$"&MATCH(MAX(S:S),S:S,0)),0))) -> 
A137: =IF(TRIM(B137)="","",COUNTA($B$7:B137)) ->  | G137: 0 | N137: 0 | S137: =IF(COUNTIF($C$7:C137,C137)=1,MAX($S$1:S131)+1,"") ->  | T137: =IF(ROWS($C$7:C137)>ROW(INDIRECT(ADDRESS(MAX(S:S),2))),"",INDEX(INDIRECT("$C$7"&":$C$"&MATCH(MAX(S:S),S:S,0)),MATCH(ROWS($C$1:C131),INDIRECT("$R$7"&":$R$"&MATCH(MAX(S:S),S:S,0)),0))) -> 
A138: =IF(TRIM(B138)="","",COUNTA($B$7:B138)) ->  | G138: 0 | N138: 0 | S138: =IF(COUNTIF($C$7:C138,C138)=1,MAX($S$1:S132)+1,"") ->  | T138: =IF(ROWS($C$7:C138)>ROW(INDIRECT(ADDRESS(MAX(S:S),2))),"",INDEX(INDIRECT("$C$7"&":$C$"&MATCH(MAX(S:S),S:S,0)),MATCH(ROWS($C$1:C132),INDIRECT("$R$7"&":$R$"&MATCH(MAX(S:S),S:S,0)),0))) -> 
A139: =IF(TRIM(B139)="","",COUNTA($B$7:B139)) ->  | G139: 0 | N139: 0 | S139: =IF(COUNTIF($C$7:C139,C139)=1,MAX($S$1:S133)+1,"") ->  | T139: =IF(ROWS($C$7:C139)>ROW(INDIRECT(ADDRESS(MAX(S:S),2))),"",INDEX(INDIRECT("$C$7"&":$C$"&MATCH(MAX(S:S),S:S,0)),MATCH(ROWS($C$1:C133),INDIRECT("$R$7"&":$R$"&MATCH(MAX(S:S),S:S,0)),0))) -> 
A140: =IF(TRIM(B140)="","",COUNTA($B$7:B140)) ->  | G140: 0 | N140: 0 | S140: =IF(COUNTIF($C$7:C140,C140)=1,MAX($S$1:S134)+1,"") ->  | T140: =IF(ROWS($C$7:C140)>ROW(INDIRECT(ADDRESS(MAX(S:S),2))),"",INDEX(INDIRECT("$C$7"&":$C$"&MATCH(MAX(S:S),S:S,0)),MATCH(ROWS($C$1:C134),INDIRECT("$R$7"&":$R$"&MATCH(MAX(S:S),S:S,0)),0))) -> 
A141: =IF(TRIM(B141)="","",COUNTA($B$7:B141)) ->  | G141: 0 | N141: 0 | S141: =IF(COUNTIF($C$7:C141,C141)=1,MAX($S$1:S135)+1,"") ->  | T141: =IF(ROWS($C$7:C141)>ROW(INDIRECT(ADDRESS(MAX(S:S),2))),"",INDEX(INDIRECT("$C$7"&":$C$"&MATCH(MAX(S:S),S:S,0)),MATCH(ROWS($C$1:C135),INDIRECT("$R$7"&":$R$"&MATCH(MAX(S:S),S:S,0)),0))) -> 
A142: =IF(TRIM(B142)="","",COUNTA($B$7:B142)) ->  | G142: 0 | N142: 0 | S142: =IF(COUNTIF($C$7:C142,C142)=1,MAX($S$1:S136)+1,"") ->  | T142: =IF(ROWS($C$7:C142)>ROW(INDIRECT(ADDRESS(MAX(S:S),2))),"",INDEX(INDIRECT("$C$7"&":$C$"&MATCH(MAX(S:S),S:S,0)),MATCH(ROWS($C$1:C136),INDIRECT("$R$7"&":$R$"&MATCH(MAX(S:S),S:S,0)),0))) -> 
A143: =IF(TRIM(B143)="","",COUNTA($B$7:B143)) ->  | G143: 0 | N143: 0 | S143: =IF(COUNTIF($C$7:C143,C143)=1,MAX($S$1:S137)+1,"") ->  | T143: =IF(ROWS($C$7:C143)>ROW(INDIRECT(ADDRESS(MAX(S:S),2))),"",INDEX(INDIRECT("$C$7"&":$C$"&MATCH(MAX(S:S),S:S,0)),MATCH(ROWS($C$1:C137),INDIRECT("$R$7"&":$R$"&MATCH(MAX(S:S),S:S,0)),0))) -> 
A144: =IF(TRIM(B144)="","",COUNTA($B$7:B144)) ->  | G144: 0 | N144: 0 | S144: =IF(COUNTIF($C$7:C144,C144)=1,MAX($S$1:S138)+1,"") ->  | T144: =IF(ROWS($C$7:C144)>ROW(INDIRECT(ADDRESS(MAX(S:S),2))),"",INDEX(INDIRECT("$C$7"&":$C$"&MATCH(MAX(S:S),S:S,0)),MATCH(ROWS($C$1:C138),INDIRECT("$R$7"&":$R$"&MATCH(MAX(S:S),S:S,0)),0))) -> 
A145: =IF(TRIM(B145)="","",COUNTA($B$7:B145)) ->  | G145: 0 | N145: 0 | S145: =IF(COUNTIF($C$7:C145,C145)=1,MAX($S$1:S139)+1,"") ->  | T145: =IF(ROWS($C$7:C145)>ROW(INDIRECT(ADDRESS(MAX(S:S),2))),"",INDEX(INDIRECT("$C$7"&":$C$"&MATCH(MAX(S:S),S:S,0)),MATCH(ROWS($C$1:C139),INDIRECT("$R$7"&":$R$"&MATCH(MAX(S:S),S:S,0)),0))) -> 
A146: =IF(TRIM(B146)="","",COUNTA($B$7:B146)) ->  | G146: 0 | N146: 0 | S146: =IF(COUNTIF($C$7:C146,C146)=1,MAX($S$1:S140)+1,"") ->  | T146: =IF(ROWS($C$7:C146)>ROW(INDIRECT(ADDRESS(MAX(S:S),2))),"",INDEX(INDIRECT("$C$7"&":$C$"&MATCH(MAX(S:S),S:S,0)),MATCH(ROWS($C$1:C140),INDIRECT("$R$7"&":$R$"&MATCH(MAX(S:S),S:S,0)),0))) -> 
A147: =IF(TRIM(B147)="","",COUNTA($B$7:B147)) ->  | G147: 0 | N147: 0 | S147: =IF(COUNTIF($C$7:C147,C147)=1,MAX($S$1:S141)+1,"") ->  | T147: =IF(ROWS($C$7:C147)>ROW(INDIRECT(ADDRESS(MAX(S:S),2))),"",INDEX(INDIRECT("$C$7"&":$C$"&MATCH(MAX(S:S),S:S,0)),MATCH(ROWS($C$1:C141),INDIRECT("$R$7"&":$R$"&MATCH(MAX(S:S),S:S,0)),0))) -> 
A148: =IF(TRIM(B148)="","",COUNTA($B$7:B148)) ->  | G148: 0 | N148: 0 | S148: =IF(COUNTIF($C$7:C148,C148)=1,MAX($S$1:S142)+1,"") ->  | T148: =IF(ROWS($C$7:C148)>ROW(INDIRECT(ADDRESS(MAX(S:S),2))),"",INDEX(INDIRECT("$C$7"&":$C$"&MATCH(MAX(S:S),S:S,0)),MATCH(ROWS($C$1:C142),INDIRECT("$R$7"&":$R$"&MATCH(MAX(S:S),S:S,0)),0))) -> 
A149: =IF(TRIM(B149)="","",COUNTA($B$7:B149)) ->  | G149: 0 | N149: 0 | S149: =IF(COUNTIF($C$7:C149,C149)=1,MAX($S$1:S143)+1,"") ->  | T149: =IF(ROWS($C$7:C149)>ROW(INDIRECT(ADDRESS(MAX(S:S),2))),"",INDEX(INDIRECT("$C$7"&":$C$"&MATCH(MAX(S:S),S:S,0)),MATCH(ROWS($C$1:C143),INDIRECT("$R$7"&":$R$"&MATCH(MAX(S:S),S:S,0)),0))) -> 
A150: =IF(TRIM(B150)="","",COUNTA($B$7:B150)) ->  | G150: 0 | N150: 0 | S150: =IF(COUNTIF($C$7:C150,C150)=1,MAX($S$1:S144)+1,"") ->  | T150: =IF(ROWS($C$7:C150)>ROW(INDIRECT(ADDRESS(MAX(S:S),2))),"",INDEX(INDIRECT("$C$7"&":$C$"&MATCH(MAX(S:S),S:S,0)),MATCH(ROWS($C$1:C144),INDIRECT("$R$7"&":$R$"&MATCH(MAX(S:S),S:S,0)),0))) -> 
A151: =IF(TRIM(B151)="","",COUNTA($B$7:B151)) ->  | G151: 0 | N151: 0 | S151: =IF(COUNTIF($C$7:C151,C151)=1,MAX($S$1:S145)+1,"") ->  | T151: =IF(ROWS($C$7:C151)>ROW(INDIRECT(ADDRESS(MAX(S:S),2))),"",INDEX(INDIRECT("$C$7"&":$C$"&MATCH(MAX(S:S),S:S,0)),MATCH(ROWS($C$1:C145),INDIRECT("$R$7"&":$R$"&MATCH(MAX(S:S),S:S,0)),0))) -> 
A152: =IF(TRIM(B152)="","",COUNTA($B$7:B152)) ->  | G152: 0 | N152: 0 | S152: =IF(COUNTIF($C$7:C152,C152)=1,MAX($S$1:S146)+1,"") ->  | T152: =IF(ROWS($C$7:C152)>ROW(INDIRECT(ADDRESS(MAX(S:S),2))),"",INDEX(INDIRECT("$C$7"&":$C$"&MATCH(MAX(S:S),S:S,0)),MATCH(ROWS($C$1:C146),INDIRECT("$R$7"&":$R$"&MATCH(MAX(S:S),S:S,0)),0))) -> 
A153: =IF(TRIM(B153)="","",COUNTA($B$7:B153)) ->  | G153: 0 | N153: 0 | S153: =IF(COUNTIF($C$7:C153,C153)=1,MAX($S$1:S147)+1,"") ->  | T153: =IF(ROWS($C$7:C153)>ROW(INDIRECT(ADDRESS(MAX(S:S),2))),"",INDEX(INDIRECT("$C$7"&":$C$"&MATCH(MAX(S:S),S:S,0)),MATCH(ROWS($C$1:C147),INDIRECT("$R$7"&":$R$"&MATCH(MAX(S:S),S:S,0)),0))) -> 
A154: =IF(TRIM(B154)="","",COUNTA($B$7:B154)) ->  | G154: 0 | N154: 0 | S154: =IF(COUNTIF($C$7:C154,C154)=1,MAX($S$1:S148)+1,"") ->  | T154: =IF(ROWS($C$7:C154)>ROW(INDIRECT(ADDRESS(MAX(S:S),2))),"",INDEX(INDIRECT("$C$7"&":$C$"&MATCH(MAX(S:S),S:S,0)),MATCH(ROWS($C$1:C148),INDIRECT("$R$7"&":$R$"&MATCH(MAX(S:S),S:S,0)),0))) -> 
A155: =IF(TRIM(B155)="","",COUNTA($B$7:B155)) ->  | G155: 0 | N155: 0 | S155: =IF(COUNTIF($C$7:C155,C155)=1,MAX($S$1:S149)+1,"") ->  | T155: =IF(ROWS($C$7:C155)>ROW(INDIRECT(ADDRESS(MAX(S:S),2))),"",INDEX(INDIRECT("$C$7"&":$C$"&MATCH(MAX(S:S),S:S,0)),MATCH(ROWS($C$1:C149),INDIRECT("$R$7"&":$R$"&MATCH(MAX(S:S),S:S,0)),0))) -> 
A156: =IF(TRIM(B156)="","",COUNTA($B$7:B156)) ->  | G156: 0 | N156: 0 | S156: =IF(COUNTIF($C$7:C156,C156)=1,MAX($S$1:S150)+1,"") ->  | T156: =IF(ROWS($C$7:C156)>ROW(INDIRECT(ADDRESS(MAX(S:S),2))),"",INDEX(INDIRECT("$C$7"&":$C$"&MATCH(MAX(S:S),S:S,0)),MATCH(ROWS($C$1:C150),INDIRECT("$R$7"&":$R$"&MATCH(MAX(S:S),S:S,0)),0))) -> 
A157: =IF(TRIM(B157)="","",COUNTA($B$7:B157)) ->  | G157: 0 | N157: 0 | S157: =IF(COUNTIF($C$7:C157,C157)=1,MAX($S$1:S151)+1,"") ->  | T157: =IF(ROWS($C$7:C157)>ROW(INDIRECT(ADDRESS(MAX(S:S),2))),"",INDEX(INDIRECT("$C$7"&":$C$"&MATCH(MAX(S:S),S:S,0)),MATCH(ROWS($C$1:C151),INDIRECT("$R$7"&":$R$"&MATCH(MAX(S:S),S:S,0)),0))) -> 
A158: =IF(TRIM(B158)="","",COUNTA($B$7:B158)) ->  | G158: 0 | N158: 0 | S158: =IF(COUNTIF($C$7:C158,C158)=1,MAX($S$1:S152)+1,"") ->  | T158: =IF(ROWS($C$7:C158)>ROW(INDIRECT(ADDRESS(MAX(S:S),2))),"",INDEX(INDIRECT("$C$7"&":$C$"&MATCH(MAX(S:S),S:S,0)),MATCH(ROWS($C$1:C152),INDIRECT("$R$7"&":$R$"&MATCH(MAX(S:S),S:S,0)),0))) -> 
A159: =IF(TRIM(B159)="","",COUNTA($B$7:B159)) ->  | G159: 0 | N159: 0 | S159: =IF(COUNTIF($C$7:C159,C159)=1,MAX($S$1:S153)+1,"") ->  | T159: =IF(ROWS($C$7:C159)>ROW(INDIRECT(ADDRESS(MAX(S:S),2))),"",INDEX(INDIRECT("$C$7"&":$C$"&MATCH(MAX(S:S),S:S,0)),MATCH(ROWS($C$1:C153),INDIRECT("$R$7"&":$R$"&MATCH(MAX(S:S),S:S,0)),0))) -> 
A160: =IF(TRIM(B160)="","",COUNTA($B$7:B160)) ->  | G160: 0 | N160: 0 | S160: =IF(COUNTIF($C$7:C160,C160)=1,MAX($S$1:S154)+1,"") ->  | T160: =IF(ROWS($C$7:C160)>ROW(INDIRECT(ADDRESS(MAX(S:S),2))),"",INDEX(INDIRECT("$C$7"&":$C$"&MATCH(MAX(S:S),S:S,0)),MATCH(ROWS($C$1:C154),INDIRECT("$R$7"&":$R$"&MATCH(MAX(S:S),S:S,0)),0))) -> 
A161: =IF(TRIM(B161)="","",COUNTA($B$7:B161)) ->  | G161: 0 | N161: 0 | S161: =IF(COUNTIF($C$7:C161,C161)=1,MAX($S$1:S155)+1,"") ->  | T161: =IF(ROWS($C$7:C161)>ROW(INDIRECT(ADDRESS(MAX(S:S),2))),"",INDEX(INDIRECT("$C$7"&":$C$"&MATCH(MAX(S:S),S:S,0)),MATCH(ROWS($C$1:C155),INDIRECT("$R$7"&":$R$"&MATCH(MAX(S:S),S:S,0)),0))) -> 
A162: =IF(TRIM(B162)="","",COUNTA($B$7:B162)) ->  | G162: 0 | N162: 0 | S162: =IF(COUNTIF($C$7:C162,C162)=1,MAX($S$1:S156)+1,"") ->  | T162: =IF(ROWS($C$7:C162)>ROW(INDIRECT(ADDRESS(MAX(S:S),2))),"",INDEX(INDIRECT("$C$7"&":$C$"&MATCH(MAX(S:S),S:S,0)),MATCH(ROWS($C$1:C156),INDIRECT("$R$7"&":$R$"&MATCH(MAX(S:S),S:S,0)),0))) -> 
A163: =IF(TRIM(B163)="","",COUNTA($B$7:B163)) ->  | G163: 0 | N163: 0 | S163: =IF(COUNTIF($C$7:C163,C163)=1,MAX($S$1:S157)+1,"") ->  | T163: =IF(ROWS($C$7:C163)>ROW(INDIRECT(ADDRESS(MAX(S:S),2))),"",INDEX(INDIRECT("$C$7"&":$C$"&MATCH(MAX(S:S),S:S,0)),MATCH(ROWS($C$1:C157),INDIRECT("$R$7"&":$R$"&MATCH(MAX(S:S),S:S,0)),0))) -> 
A164: =IF(TRIM(B164)="","",COUNTA($B$7:B164)) ->  | G164: 0 | N164: 0 | S164: =IF(COUNTIF($C$7:C164,C164)=1,MAX($S$1:S158)+1,"") ->  | T164: =IF(ROWS($C$7:C164)>ROW(INDIRECT(ADDRESS(MAX(S:S),2))),"",INDEX(INDIRECT("$C$7"&":$C$"&MATCH(MAX(S:S),S:S,0)),MATCH(ROWS($C$1:C158),INDIRECT("$R$7"&":$R$"&MATCH(MAX(S:S),S:S,0)),0))) -> 
A165: =IF(TRIM(B165)="","",COUNTA($B$7:B165)) ->  | G165: 0 | N165: 0 | S165: =IF(COUNTIF($C$7:C165,C165)=1,MAX($S$1:S159)+1,"") ->  | T165: =IF(ROWS($C$7:C165)>ROW(INDIRECT(ADDRESS(MAX(S:S),2))),"",INDEX(INDIRECT("$C$7"&":$C$"&MATCH(MAX(S:S),S:S,0)),MATCH(ROWS($C$1:C159),INDIRECT("$R$7"&":$R$"&MATCH(MAX(S:S),S:S,0)),0))) -> 
A166: =IF(TRIM(B166)="","",COUNTA($B$7:B166)) ->  | G166: 0 | N166: 0 | S166: =IF(COUNTIF($C$7:C166,C166)=1,MAX($S$1:S160)+1,"") ->  | T166: =IF(ROWS($C$7:C166)>ROW(INDIRECT(ADDRESS(MAX(S:S),2))),"",INDEX(INDIRECT("$C$7"&":$C$"&MATCH(MAX(S:S),S:S,0)),MATCH(ROWS($C$1:C160),INDIRECT("$R$7"&":$R$"&MATCH(MAX(S:S),S:S,0)),0))) -> 
A167: =IF(TRIM(B167)="","",COUNTA($B$7:B167)) ->  | G167: 0 | N167: 0 | S167: =IF(COUNTIF($C$7:C167,C167)=1,MAX($S$1:S161)+1,"") ->  | T167: =IF(ROWS($C$7:C167)>ROW(INDIRECT(ADDRESS(MAX(S:S),2))),"",INDEX(INDIRECT("$C$7"&":$C$"&MATCH(MAX(S:S),S:S,0)),MATCH(ROWS($C$1:C161),INDIRECT("$R$7"&":$R$"&MATCH(MAX(S:S),S:S,0)),0))) -> 
A168: =IF(TRIM(B168)="","",COUNTA($B$7:B168)) ->  | G168: 0 | N168: 0 | S168: =IF(COUNTIF($C$7:C168,C168)=1,MAX($S$1:S162)+1,"") ->  | T168: =IF(ROWS($C$7:C168)>ROW(INDIRECT(ADDRESS(MAX(S:S),2))),"",INDEX(INDIRECT("$C$7"&":$C$"&MATCH(MAX(S:S),S:S,0)),MATCH(ROWS($C$1:C162),INDIRECT("$R$7"&":$R$"&MATCH(MAX(S:S),S:S,0)),0))) -> 
A169: =IF(TRIM(B169)="","",COUNTA($B$7:B169)) ->  | G169: 0 | N169: 0 | S169: =IF(COUNTIF($C$7:C169,C169)=1,MAX($S$1:S163)+1,"") ->  | T169: =IF(ROWS($C$7:C169)>ROW(INDIRECT(ADDRESS(MAX(S:S),2))),"",INDEX(INDIRECT("$C$7"&":$C$"&MATCH(MAX(S:S),S:S,0)),MATCH(ROWS($C$1:C163),INDIRECT("$R$7"&":$R$"&MATCH(MAX(S:S),S:S,0)),0))) -> 
A170: =IF(TRIM(B170)="","",COUNTA($B$7:B170)) ->  | G170: 0 | N170: 0 | S170: =IF(COUNTIF($C$7:C170,C170)=1,MAX($S$1:S164)+1,"") ->  | T170: =IF(ROWS($C$7:C170)>ROW(INDIRECT(ADDRESS(MAX(S:S),2))),"",INDEX(INDIRECT("$C$7"&":$C$"&MATCH(MAX(S:S),S:S,0)),MATCH(ROWS($C$1:C164),INDIRECT("$R$7"&":$R$"&MATCH(MAX(S:S),S:S,0)),0))) -> 
A171: =IF(TRIM(B171)="","",COUNTA($B$7:B171)) ->  | G171: 0 | N171: 0 | S171: =IF(COUNTIF($C$7:C171,C171)=1,MAX($S$1:S165)+1,"") ->  | T171: =IF(ROWS($C$7:C171)>ROW(INDIRECT(ADDRESS(MAX(S:S),2))),"",INDEX(INDIRECT("$C$7"&":$C$"&MATCH(MAX(S:S),S:S,0)),MATCH(ROWS($C$1:C165),INDIRECT("$R$7"&":$R$"&MATCH(MAX(S:S),S:S,0)),0))) -> 
A172: =IF(TRIM(B172)="","",COUNTA($B$7:B172)) ->  | G172: 0 | N172: 0 | S172: =IF(COUNTIF($C$7:C172,C172)=1,MAX($S$1:S166)+1,"") ->  | T172: =IF(ROWS($C$7:C172)>ROW(INDIRECT(ADDRESS(MAX(S:S),2))),"",INDEX(INDIRECT("$C$7"&":$C$"&MATCH(MAX(S:S),S:S,0)),MATCH(ROWS($C$1:C166),INDIRECT("$R$7"&":$R$"&MATCH(MAX(S:S),S:S,0)),0))) -> 
A173: =IF(TRIM(B173)="","",COUNTA($B$7:B173)) ->  | G173: 0 | N173: 0 | S173: =IF(COUNTIF($C$7:C173,C173)=1,MAX($S$1:S167)+1,"") ->  | T173: =IF(ROWS($C$7:C173)>ROW(INDIRECT(ADDRESS(MAX(S:S),2))),"",INDEX(INDIRECT("$C$7"&":$C$"&MATCH(MAX(S:S),S:S,0)),MATCH(ROWS($C$1:C167),INDIRECT("$R$7"&":$R$"&MATCH(MAX(S:S),S:S,0)),0))) -> 
A174: =IF(TRIM(B174)="","",COUNTA($B$7:B174)) ->  | G174: 0 | N174: 0 | S174: =IF(COUNTIF($C$7:C174,C174)=1,MAX($S$1:S168)+1,"") ->  | T174: =IF(ROWS($C$7:C174)>ROW(INDIRECT(ADDRESS(MAX(S:S),2))),"",INDEX(INDIRECT("$C$7"&":$C$"&MATCH(MAX(S:S),S:S,0)),MATCH(ROWS($C$1:C168),INDIRECT("$R$7"&":$R$"&MATCH(MAX(S:S),S:S,0)),0))) -> 
A175: =IF(TRIM(B175)="","",COUNTA($B$7:B175)) ->  | G175: 0 | N175: 0 | S175: =IF(COUNTIF($C$7:C175,C175)=1,MAX($S$1:S169)+1,"") ->  | T175: =IF(ROWS($C$7:C175)>ROW(INDIRECT(ADDRESS(MAX(S:S),2))),"",INDEX(INDIRECT("$C$7"&":$C$"&MATCH(MAX(S:S),S:S,0)),MATCH(ROWS($C$1:C169),INDIRECT("$R$7"&":$R$"&MATCH(MAX(S:S),S:S,0)),0))) -> 
A176: =IF(TRIM(B176)="","",COUNTA($B$7:B176)) ->  | G176: 0 | N176: 0 | S176: =IF(COUNTIF($C$7:C176,C176)=1,MAX($S$1:S170)+1,"") ->  | T176: =IF(ROWS($C$7:C176)>ROW(INDIRECT(ADDRESS(MAX(S:S),2))),"",INDEX(INDIRECT("$C$7"&":$C$"&MATCH(MAX(S:S),S:S,0)),MATCH(ROWS($C$1:C170),INDIRECT("$R$7"&":$R$"&MATCH(MAX(S:S),S:S,0)),0))) -> 
A177: =IF(TRIM(B177)="","",COUNTA($B$7:B177)) ->  | G177: 0 | N177: 0 | S177: =IF(COUNTIF($C$7:C177,C177)=1,MAX($S$1:S171)+1,"") ->  | T177: =IF(ROWS($C$7:C177)>ROW(INDIRECT(ADDRESS(MAX(S:S),2))),"",INDEX(INDIRECT("$C$7"&":$C$"&MATCH(MAX(S:S),S:S,0)),MATCH(ROWS($C$1:C171),INDIRECT("$R$7"&":$R$"&MATCH(MAX(S:S),S:S,0)),0))) -> 
A178: =IF(TRIM(B178)="","",COUNTA($B$7:B178)) ->  | G178: 0 | N178: 0 | S178: =IF(COUNTIF($C$7:C178,C178)=1,MAX($S$1:S172)+1,"") ->  | T178: =IF(ROWS($C$7:C178)>ROW(INDIRECT(ADDRESS(MAX(S:S),2))),"",INDEX(INDIRECT("$C$7"&":$C$"&MATCH(MAX(S:S),S:S,0)),MATCH(ROWS($C$1:C172),INDIRECT("$R$7"&":$R$"&MATCH(MAX(S:S),S:S,0)),0))) -> 
A179: =IF(TRIM(B179)="","",COUNTA($B$7:B179)) ->  | G179: 0 | N179: 0 | S179: =IF(COUNTIF($C$7:C179,C179)=1,MAX($S$1:S173)+1,"") ->  | T179: =IF(ROWS($C$7:C179)>ROW(INDIRECT(ADDRESS(MAX(S:S),2))),"",INDEX(INDIRECT("$C$7"&":$C$"&MATCH(MAX(S:S),S:S,0)),MATCH(ROWS($C$1:C173),INDIRECT("$R$7"&":$R$"&MATCH(MAX(S:S),S:S,0)),0))) -> 
A180: =IF(TRIM(B180)="","",COUNTA($B$7:B180)) ->  | G180: 0 | N180: 0 | S180: =IF(COUNTIF($C$7:C180,C180)=1,MAX($S$1:S174)+1,"") ->  | T180: =IF(ROWS($C$7:C180)>ROW(INDIRECT(ADDRESS(MAX(S:S),2))),"",INDEX(INDIRECT("$C$7"&":$C$"&MATCH(MAX(S:S),S:S,0)),MATCH(ROWS($C$1:C174),INDIRECT("$R$7"&":$R$"&MATCH(MAX(S:S),S:S,0)),0))) -> 
A181: =IF(TRIM(B181)="","",COUNTA($B$7:B181)) ->  | G181: 0 | N181: 0 | S181: =IF(COUNTIF($C$7:C181,C181)=1,MAX($S$1:S175)+1,"") ->  | T181: =IF(ROWS($C$7:C181)>ROW(INDIRECT(ADDRESS(MAX(S:S),2))),"",INDEX(INDIRECT("$C$7"&":$C$"&MATCH(MAX(S:S),S:S,0)),MATCH(ROWS($C$1:C175),INDIRECT("$R$7"&":$R$"&MATCH(MAX(S:S),S:S,0)),0))) -> 
A182: =IF(TRIM(B182)="","",COUNTA($B$7:B182)) ->  | G182: 0 | N182: 0 | S182: =IF(COUNTIF($C$7:C182,C182)=1,MAX($S$1:S176)+1,"") ->  | T182: =IF(ROWS($C$7:C182)>ROW(INDIRECT(ADDRESS(MAX(S:S),2))),"",INDEX(INDIRECT("$C$7"&":$C$"&MATCH(MAX(S:S),S:S,0)),MATCH(ROWS($C$1:C176),INDIRECT("$R$7"&":$R$"&MATCH(MAX(S:S),S:S,0)),0))) -> 
A183: =IF(TRIM(B183)="","",COUNTA($B$7:B183)) ->  | G183: 0 | N183: 0 | S183: =IF(COUNTIF($C$7:C183,C183)=1,MAX($S$1:S177)+1,"") ->  | T183: =IF(ROWS($C$7:C183)>ROW(INDIRECT(ADDRESS(MAX(S:S),2))),"",INDEX(INDIRECT("$C$7"&":$C$"&MATCH(MAX(S:S),S:S,0)),MATCH(ROWS($C$1:C177),INDIRECT("$R$7"&":$R$"&MATCH(MAX(S:S),S:S,0)),0))) -> 
A184: =IF(TRIM(B184)="","",COUNTA($B$7:B184)) ->  | G184: 0 | N184: 0 | S184: =IF(COUNTIF($C$7:C184,C184)=1,MAX($S$1:S178)+1,"") ->  | T184: =IF(ROWS($C$7:C184)>ROW(INDIRECT(ADDRESS(MAX(S:S),2))),"",INDEX(INDIRECT("$C$7"&":$C$"&MATCH(MAX(S:S),S:S,0)),MATCH(ROWS($C$1:C178),INDIRECT("$R$7"&":$R$"&MATCH(MAX(S:S),S:S,0)),0))) -> 
A185: =IF(TRIM(B185)="","",COUNTA($B$7:B185)) ->  | G185: 0 | N185: 0 | S185: =IF(COUNTIF($C$7:C185,C185)=1,MAX($S$1:S179)+1,"") ->  | T185: =IF(ROWS($C$7:C185)>ROW(INDIRECT(ADDRESS(MAX(S:S),2))),"",INDEX(INDIRECT("$C$7"&":$C$"&MATCH(MAX(S:S),S:S,0)),MATCH(ROWS($C$1:C179),INDIRECT("$R$7"&":$R$"&MATCH(MAX(S:S),S:S,0)),0))) -> 
A186: =IF(TRIM(B186)="","",COUNTA($B$7:B186)) ->  | G186: 0 | N186: 0 | S186: =IF(COUNTIF($C$7:C186,C186)=1,MAX($S$1:S180)+1,"") ->  | T186: =IF(ROWS($C$7:C186)>ROW(INDIRECT(ADDRESS(MAX(S:S),2))),"",INDEX(INDIRECT("$C$7"&":$C$"&MATCH(MAX(S:S),S:S,0)),MATCH(ROWS($C$1:C180),INDIRECT("$R$7"&":$R$"&MATCH(MAX(S:S),S:S,0)),0))) -> 
A187: =IF(TRIM(B187)="","",COUNTA($B$7:B187)) ->  | G187: 0 | N187: 0 | S187: =IF(COUNTIF($C$7:C187,C187)=1,MAX($S$1:S181)+1,"") ->  | T187: =IF(ROWS($C$7:C187)>ROW(INDIRECT(ADDRESS(MAX(S:S),2))),"",INDEX(INDIRECT("$C$7"&":$C$"&MATCH(MAX(S:S),S:S,0)),MATCH(ROWS($C$1:C181),INDIRECT("$R$7"&":$R$"&MATCH(MAX(S:S),S:S,0)),0))) -> 
A188: =IF(TRIM(B188)="","",COUNTA($B$7:B188)) ->  | G188: 0 | N188: 0 | S188: =IF(COUNTIF($C$7:C188,C188)=1,MAX($S$1:S182)+1,"") ->  | T188: =IF(ROWS($C$7:C188)>ROW(INDIRECT(ADDRESS(MAX(S:S),2))),"",INDEX(INDIRECT("$C$7"&":$C$"&MATCH(MAX(S:S),S:S,0)),MATCH(ROWS($C$1:C182),INDIRECT("$R$7"&":$R$"&MATCH(MAX(S:S),S:S,0)),0))) -> 
A189: =IF(TRIM(B189)="","",COUNTA($B$7:B189)) ->  | G189: 0 | N189: 0 | S189: =IF(COUNTIF($C$7:C189,C189)=1,MAX($S$1:S183)+1,"") ->  | T189: =IF(ROWS($C$7:C189)>ROW(INDIRECT(ADDRESS(MAX(S:S),2))),"",INDEX(INDIRECT("$C$7"&":$C$"&MATCH(MAX(S:S),S:S,0)),MATCH(ROWS($C$1:C183),INDIRECT("$R$7"&":$R$"&MATCH(MAX(S:S),S:S,0)),0))) -> 
A190: =IF(TRIM(B190)="","",COUNTA($B$7:B190)) ->  | G190: 0 | N190: 0 | S190: =IF(COUNTIF($C$7:C190,C190)=1,MAX($S$1:S184)+1,"") ->  | T190: =IF(ROWS($C$7:C190)>ROW(INDIRECT(ADDRESS(MAX(S:S),2))),"",INDEX(INDIRECT("$C$7"&":$C$"&MATCH(MAX(S:S),S:S,0)),MATCH(ROWS($C$1:C184),INDIRECT("$R$7"&":$R$"&MATCH(MAX(S:S),S:S,0)),0))) -> 
A191: =IF(TRIM(B191)="","",COUNTA($B$7:B191)) ->  | G191: 0 | N191: 0 | S191: =IF(COUNTIF($C$7:C191,C191)=1,MAX($S$1:S185)+1,"") ->  | T191: =IF(ROWS($C$7:C191)>ROW(INDIRECT(ADDRESS(MAX(S:S),2))),"",INDEX(INDIRECT("$C$7"&":$C$"&MATCH(MAX(S:S),S:S,0)),MATCH(ROWS($C$1:C185),INDIRECT("$R$7"&":$R$"&MATCH(MAX(S:S),S:S,0)),0))) -> 
A192: =IF(TRIM(B192)="","",COUNTA($B$7:B192)) ->  | G192: 0 | N192: 0 | S192: =IF(COUNTIF($C$7:C192,C192)=1,MAX($S$1:S186)+1,"") ->  | T192: =IF(ROWS($C$7:C192)>ROW(INDIRECT(ADDRESS(MAX(S:S),2))),"",INDEX(INDIRECT("$C$7"&":$C$"&MATCH(MAX(S:S),S:S,0)),MATCH(ROWS($C$1:C186),INDIRECT("$R$7"&":$R$"&MATCH(MAX(S:S),S:S,0)),0))) -> 
A193: =IF(TRIM(B193)="","",COUNTA($B$7:B193)) ->  | G193: 0 | N193: 0 | S193: =IF(COUNTIF($C$7:C193,C193)=1,MAX($S$1:S187)+1,"") ->  | T193: =IF(ROWS($C$7:C193)>ROW(INDIRECT(ADDRESS(MAX(S:S),2))),"",INDEX(INDIRECT("$C$7"&":$C$"&MATCH(MAX(S:S),S:S,0)),MATCH(ROWS($C$1:C187),INDIRECT("$R$7"&":$R$"&MATCH(MAX(S:S),S:S,0)),0))) -> 
A194: =IF(TRIM(B194)="","",COUNTA($B$7:B194)) ->  | G194: 0 | N194: 0 | S194: =IF(COUNTIF($C$7:C194,C194)=1,MAX($S$1:S188)+1,"") ->  | T194: =IF(ROWS($C$7:C194)>ROW(INDIRECT(ADDRESS(MAX(S:S),2))),"",INDEX(INDIRECT("$C$7"&":$C$"&MATCH(MAX(S:S),S:S,0)),MATCH(ROWS($C$1:C188),INDIRECT("$R$7"&":$R$"&MATCH(MAX(S:S),S:S,0)),0))) -> 
A195: =IF(TRIM(B195)="","",COUNTA($B$7:B195)) ->  | G195: 0 | N195: 0 | S195: =IF(COUNTIF($C$7:C195,C195)=1,MAX($S$1:S189)+1,"") ->  | T195: =IF(ROWS($C$7:C195)>ROW(INDIRECT(ADDRESS(MAX(S:S),2))),"",INDEX(INDIRECT("$C$7"&":$C$"&MATCH(MAX(S:S),S:S,0)),MATCH(ROWS($C$1:C189),INDIRECT("$R$7"&":$R$"&MATCH(MAX(S:S),S:S,0)),0))) -> 
A196: =IF(TRIM(B196)="","",COUNTA($B$7:B196)) ->  | G196: 0 | N196: 0 | S196: =IF(COUNTIF($C$7:C196,C196)=1,MAX($S$1:S190)+1,"") ->  | T196: =IF(ROWS($C$7:C196)>ROW(INDIRECT(ADDRESS(MAX(S:S),2))),"",INDEX(INDIRECT("$C$7"&":$C$"&MATCH(MAX(S:S),S:S,0)),MATCH(ROWS($C$1:C190),INDIRECT("$R$7"&":$R$"&MATCH(MAX(S:S),S:S,0)),0))) -> 
A197: =IF(TRIM(B197)="","",COUNTA($B$7:B197)) ->  | G197: 0 | N197: 0 | S197: =IF(COUNTIF($C$7:C197,C197)=1,MAX($S$1:S191)+1,"") ->  | T197: =IF(ROWS($C$7:C197)>ROW(INDIRECT(ADDRESS(MAX(S:S),2))),"",INDEX(INDIRECT("$C$7"&":$C$"&MATCH(MAX(S:S),S:S,0)),MATCH(ROWS($C$1:C191),INDIRECT("$R$7"&":$R$"&MATCH(MAX(S:S),S:S,0)),0))) -> 
A198: =IF(TRIM(B198)="","",COUNTA($B$7:B198)) ->  | G198: 0 | N198: 0 | S198: =IF(COUNTIF($C$7:C198,C198)=1,MAX($S$1:S192)+1,"") ->  | T198: =IF(ROWS($C$7:C198)>ROW(INDIRECT(ADDRESS(MAX(S:S),2))),"",INDEX(INDIRECT("$C$7"&":$C$"&MATCH(MAX(S:S),S:S,0)),MATCH(ROWS($C$1:C192),INDIRECT("$R$7"&":$R$"&MATCH(MAX(S:S),S:S,0)),0))) -> 
A199: =IF(TRIM(B199)="","",COUNTA($B$7:B199)) ->  | G199: 0 | N199: 0 | S199: =IF(COUNTIF($C$7:C199,C199)=1,MAX($S$1:S193)+1,"") ->  | T199: =IF(ROWS($C$7:C199)>ROW(INDIRECT(ADDRESS(MAX(S:S),2))),"",INDEX(INDIRECT("$C$7"&":$C$"&MATCH(MAX(S:S),S:S,0)),MATCH(ROWS($C$1:C193),INDIRECT("$R$7"&":$R$"&MATCH(MAX(S:S),S:S,0)),0))) -> 
A200: =IF(TRIM(B200)="","",COUNTA($B$7:B200)) ->  | G200: =E200*D200 -> 0 | N200: =M200*L200 -> 0 | S200: =IF(COUNTIF($C$7:C200,C200)=1,MAX($S$1:S194)+1,"") ->  | T200: =IF(ROWS($C$7:C200)>ROW(INDIRECT(ADDRESS(MAX(S:S),2))),"",INDEX(INDIRECT("$C$7"&":$C$"&MATCH(MAX(S:S),S:S,0)),MATCH(ROWS($C$1:C194),INDIRECT("$R$7"&":$R$"&MATCH(MAX(S:S),S:S,0)),0))) -> 
A201: =IF(TRIM(B201)="","",COUNTA($B$7:B201)) ->  | G201: 0 | N201: 0 | S201: =IF(COUNTIF($C$7:C201,C201)=1,MAX($S$1:S195)+1,"") ->  | T201: =IF(ROWS($C$7:C201)>ROW(INDIRECT(ADDRESS(MAX(S:S),2))),"",INDEX(INDIRECT("$C$7"&":$C$"&MATCH(MAX(S:S),S:S,0)),MATCH(ROWS($C$1:C195),INDIRECT("$R$7"&":$R$"&MATCH(MAX(S:S),S:S,0)),0))) -> 
... 2 more rows
